Workbook

Sheet Input
A1: L2/L1 = | B1: 1
A3: Mi | B3: (L1/10) | C3: Moment influence line for point i
A4: Ri | B4: (1) | C4: Reaction influence line for support i
A5: Qi | B5: (1) | C5: Shear influence line for point i
A6: Di | B6: (L1^3/EI)/100 | C6: Deflection influence line for point i
A7: Si | B7: (L1^2/EI)/10 | C7: Rotation angle influence line for support i
A8: M-i | B8: (L1/10) | C8: Moment diagram when a unit point load is applied at point i
A9: MSi | B9: (L1^2/10) | C9: Moment diagram when uniformly distributed loads are applied at span i
A10: Q-i | B10: (1) | C10: Shear diagram when a unit point load is applied at point i
A11: QSi | B11: (L1) | C11: Shear diagram when uniformly distributed loads are applied at span i
A12: D-i | B12: (L1^3/EI)/100 | C12: Deflection diagram when a unit point load is applied at point i
A13: DSi | B13: (L1^4/EI)/100 | C13: Deflection diagram when uniformly distributed loads are applied at span i
A14: SSi | B14: (L1^3/EI)/10 | C14: Rotation angle diagram when uniformly distributed loads are applied at support i

Sheet 2spanCalculation (hidden)
DC5: Mx0/L | DX5: Mx1(X1/L) | ER5: Mx0+Mx1(X1/L) | FL5: 10(Mx0+Mx1(X1/L)) | GH5: fx0EI/L1^3 | HA5: fx1X1 | HV5: fx0+fx1X1 | IP5: (fx0+fx1X1)*100
D6: Bending Moment | V6: Shear Force | X6: Reaction | DC6: 1 | DL6: 2 | DX6: 1 | EG6: 2 | ER6: 1 | FA6: 2 | FL6: 1 | FU6: 2 | GH6: 1 | GQ6: 2 | HA6: 1 | HJ6: 2 | HV6: 1 | IE6: 2 | IP6: 1 | IY6: 2
D7: 0 | E7: =+D7+1 -> 1 | F7: 2 | G7: 3 | H7: 4 | I7: 5 | J7: 6 | K7: 7 | L7: 8 | M7: =+L7 -> 8 | N7: =+M7+1 -> 9 | O7: 10 | P7: 11 | Q7: 12 | R7: 13 | S7: 14 | T7: 15 | U7: 16 | V7: lQB | W7: rQB | X7: RA | Y7: RB | Z7: RC | AC7: -RC | AE7: 0 | AF7: 0 | AG7: 1 | AH7: 1 | AI7: =+AG7+1 -> 2 | AJ7: 2 | AK7: 3 | AL7: 3 | AM7: 4 | AN7: 4 | AO7: 5 | AP7: 5 | AQ7: 6 | AR7: 6 | AS7: 7 | AT7: 7 | AU7: 8 | AV7: 8 | AW7: 9 | AX7: 9 | AY7: 10 | AZ7: 10 | BA7: 11 | BB7: 11 | BC7: 12 | BD7: 12 | BE7: 13 | BF7: 13 | BG7: 14 | BH7: 14 | BI7: 15 | BJ7: 15 | BK7: 16 | BL7: 16 | DC7: 0 | DD7: =+DC7+1/8 -> 0.125 | DE7: =+DD7+1/8 -> 0.25 | DF7: =+DE7+1/8 -> 0.375 | DG7: =+DF7+1/8 -> 0.5 | DH7: =+DG7+1/8 -> 0.625 | DI7: =+DH7+1/8 -> 0.75 | DJ7: =+DI7+1/8 -> 0.875 | DK7: =+DJ7+1/8 -> 1 | DL7: 0 | DM7: =+DL7+1/8 -> 0.125 | DN7: =+DM7+1/8 -> 0.25 | DO7: =+DN7+1/8 -> 0.375 | DP7: =+DO7+1/8 -> 0.5 | DQ7: =+DP7+1/8 -> 0.625 | DR7: =+DQ7+1/8 -> 0.75 | DS7: =+DR7+1/8 -> 0.875 | DT7: =+DS7+1/8 -> 1 | DX7: 0 | DY7: =+DX7+1/8 -> 0.125 | DZ7: =+DY7+1/8 -> 0.25 | EA7: =+DZ7+1/8 -> 0.375 | EB7: =+EA7+1/8 -> 0.5 | EC7: =+EB7+1/8 -> 0.625 | ED7: =+EC7+1/8 -> 0.75 | EE7: =+ED7+1/8 -> 0.875 | EF7: =+EE7+1/8 -> 1 | EG7: 0 | EH7: =+EG7+1/8 -> 0.125 | EI7: =+EH7+1/8 -> 0.25 | EJ7: =+EI7+1/8 -> 0.375 | EK7: =+EJ7+1/8 -> 0.5 | EL7: =+EK7+1/8 -> 0.625 | EM7: =+EL7+1/8 -> 0.75 | EN7: =+EM7+1/8 -> 0.875 | EO7: =+EN7+1/8 -> 1 | ER7: 0 | ES7: =+ER7+1/8 -> 0.125 | ET7: =+ES7+1/8 -> 0.25 | EU7: 0.375 | EV7: 0.5 | EW7: 0.625 | EX7: 0.75 | EY7: 0.875 | EZ7: 1 | FA7: 0 | FB7: =+FA7+1/8 -> 0.125 | FC7: =+FB7+1/8 -> 0.25 | FD7: =+FC7+1/8 -> 0.375 | FE7: =+FD7+1/8 -> 0.5 | FF7: =+FE7+1/8 -> 0.625 | FG7: =+FF7+1/8 -> 0.75 | FH7: =+FG7+1/8 -> 0.875 | FI7: =+FH7+1/8 -> 1 | FL7: 0 | FM7: =+FL7+1/8 -> 0.125 | FN7: =+FM7+1/8 -> 0.25 | FO7: =+FN7+1/8 -> 0.375 | FP7: =+FO7+1/8 -> 0.5 | FQ7: =+FP7+1/8 -> 0.625 | FR7: =+FQ7+1/8 -> 0.75 | FS7: =+FR7+1/8 -> 0.875 | FT7: =+FS7+1/8 -> 1 | FU7: 0 | FV7: =+FU7+1/8 -> 0.125 | FW7: =+FV7+1/8 -> 0.25 | FX7: =+FW7+1/8 -> 0.375 | FY7: =+FX7+1/8 -> 0.5 | FZ7: =+FY7+1/8 -> 0.625 | GA7: =+FZ7+1/8 -> 0.75 | GB7: =+GA7+1/8 -> 0.875 | GC7: =+GB7+1/8 -> 1 | GG7: u | GH7: 0 | GI7: =+GH7+1/8 -> 0.125 | GJ7: =+GI7+1/8 -> 0.25 | GK7: =+GJ7+1/8 -> 0.375 | GL7: =+GK7+1/8 -> 0.5 | GM7: =+GL7+1/8 -> 0.625 | GN7: =+GM7+1/8 -> 0.75 | GO7: =+GN7+1/8 -> 0.875 | GP7: =+GO7+1/8 -> 1 | GQ7: 0 | GR7: =+GQ7+1/8 -> 0.125 | GS7: =+GR7+1/8 -> 0.25 | GT7: =+GS7+1/8 -> 0.375 | GU7: =+GT7+1/8 -> 0.5 | GV7: =+GU7+1/8 -> 0.625 | GW7: =+GV7+1/8 -> 0.75 | GX7: =+GW7+1/8 -> 0.875 | GY7: =+GX7+1/8 -> 1 | HA7: 0 | HB7: =+HA7+1/8 -> 0.125 | HC7: =+HB7+1/8 -> 0.25 | HD7: =+HC7+1/8 -> 0.375 | HE7: =+HD7+1/8 -> 0.5 | HF7: =+HE7+1/8 -> 0.625 | HG7: =+HF7+1/8 -> 0.75 | HH7: =+HG7+1/8 -> 0.875 | HI7: =+HH7+1/8 -> 1 | HJ7: 0 | HK7: =+HJ7+1/8 -> 0.125 | HL7: =+HK7+1/8 -> 0.25 | HM7: =+HL7+1/8 -> 0.375 | HN7: =+HM7+1/8 -> 0.5 | HO7: =+HN7+1/8 -> 0.625 | HP7: =+HO7+1/8 -> 0.75 | HQ7: =+HP7+1/8 -> 0.875 | HR7: =+HQ7+1/8 -> 1 | HV7: 0 | HW7: =+HV7+1/8 -> 0.125 | HX7: =+HW7+1/8 -> 0.25 | HY7: =+HX7+1/8 -> 0.375 | HZ7: =+HY7+1/8 -> 0.5 | IA7: =+HZ7+1/8 -> 0.625 | IB7: =+IA7+1/8 -> 0.75 | IC7: =+IB7+1/8 -> 0.875 | ID7: =+IC7+1/8 -> 1 | IE7: 0 | IF7: =+IE7+1/8 -> 0.125 | IG7: =+IF7+1/8 -> 0.25 | IH7: =+IG7+1/8 -> 0.375 | II7: =+IH7+1/8 -> 0.5 | IJ7: =+II7+1/8 -> 0.625 | IK7: =+IJ7+1/8 -> 0.75 | IL7: =+IK7+1/8 -> 0.875 | IM7: =+IL7+1/8 -> 1 | IP7: 0 | IQ7: =+IP7+1/8 -> 0.125 | IR7: =+IQ7+1/8 -> 0.25 | IS7: =+IR7+1/8 -> 0.375 | IT7: =+IS7+1/8 -> 0.5 | IU7: =+IT7+1/8 -> 0.625 | IV7: =+IU7+1/8 -> 0.75 | IW7: =+IV7+1/8 -> 0.875 | IX7: =+IW7+1/8 -> 1 | IY7: 0 | IZ7: =+IY7+1/8 -> 0.125 | JA7: =+IZ7+1/8 -> 0.25 | JB7: =+JA7+1/8 -> 0.375 | JC7: =+JB7+1/8 -> 0.5 | JD7: =+JC7+1/8 -> 0.625 | JE7: =+JD7+1/8 -> 0.75 | JF7: =+JE7+1/8 -> 0.875 | JG7: =+JF7+1/8 -> 1 | JL7: 0 | JM7: =+JL7+1/8 -> 0.125 | JN7: =+JM7+1/8 -> 0.25 | JO7: 0.375 | JP7: 0.5 | JQ7: 0.625 | JR7: 0.75 | JS7: 0.875 | JT7: 1 | JU7: 0 | JV7: =+JU7+1/8 -> 0.125 | JW7: 0.25 | JX7: 0.375 | JY7: 0.5 | JZ7: 0.625 | KA7: 0.75 | KB7: 0.875 | KC7: 1 | KE7: 0 | KF7: =+KE7+1/8 -> 0.125 | KG7: =+KF7+1/8 -> 0.25 | KH7: 0.375 | KI7: 0.5 | KJ7: 0.625 | KK7: 0.75 | KL7: 0.875 | KM7: 1 | KN7: 0 | KO7: =+KN7+1/8 -> 0.125 | KP7: 0.25 | KQ7: 0.375 | KR7: 0.5 | KS7: 0.625 | KT7: 0.75 | KU7: 0.875 | KV7: 1 | KX7: 0 | KY7: =+KX7+1/8 -> 0.125 | KZ7: =+KY7+1/8 -> 0.25 | LA7: 0.375 | LB7: 0.5 | LC7: 0.625 | LD7: 0.75 | LE7: 0.875 | LF7: 1 | LG7: 0 | LH7: =+LG7+1/8 -> 0.125 | LI7: 0.25 | LJ7: 0.375 | LK7: 0.5 | LL7: 0.625 | LM7: 0.75 | LN7: 0.875 | LO7: 1 | LQ7: 0 | LR7: =+LQ7+1/8 -> 0.125 | LS7: =+LR7+1/8 -> 0.25 | LT7: 0.375 | LU7: 0.5 | LV7: 0.625 | LW7: 0.75 | LX7: 0.875 | LY7: 1 | LZ7: 0 | MA7: =+LZ7+1/8 -> 0.125 | MB7: 0.25 | MC7: 0.375 | MD7: 0.5 | ME7: 0.625 | MF7: 0.75 | MG7: 0.875 | MH7: 1
C8: 0 | D8: =+FL11 -> 0 | E8: =+FM11 -> 0 | F8: =+FN11 -> 0 | G8: =+FO11 -> 0 | H8: =+FP11 -> 0 | I8: =+FQ11 -> 0 | J8: =+FR11 -> 0 | K8: =+FS11 -> 0 | L8: =+FT11 -> 0 | M8: =+FU11 -> 0 | N8: =+FV11 -> 0 | O8: =+FW11 -> 0 | P8: =+FX11 -> 0 | Q8: =+FY11 -> 0 | R8: =+FZ11 -> 0 | S8: =+GA11 -> 0 | T8: =+GB11 -> 0 | U8: =+GC11 -> 0 | V8: =+CA11 -> 0 | W8: =+CG11 -> 0 | X8: =+BV11 -> 1 | Y8: =+BY11 -> 0 | Z8: =+CE11 -> 0 | AC8: =-Z8 -> 0 | DC8: 0 | DD8: 1 | DE8: 2 | DF8: 3 | DG8: 4 | DH8: 5 | DI8: 6 | DJ8: 7 | DK8: 8 | DW8: Mx1 | DX8: =+DX7 -> 0 | DY8: =+DY7 -> 0.125 | DZ8: 0.25 | EA8: 0.375 | EB8: 0.5 | EC8: 0.625 | ED8: 0.75 | EE8: 0.875 | EF8: 1 | EG8: =1-EG7 -> 1 | EH8: =1-EH7 -> 0.875 | EI8: 0.75 | EJ8: 0.625 | EK8: 0.5 | EL8: 0.375 | EM8: 0.25 | EN8: 0.125 | EO8: 0 | GG8: u' | GH8: =1-GH7 -> 1 | GI8: =1-GI7 -> 0.875 | GJ8: 0.75 | GK8: 0.625 | GL8: 0.5 | GM8: 0.375 | GN8: 0.25 | GO8: 0.125 | GP8: 0 | GQ8: 1 | GR8: 0.875 | GS8: 0.75 | GT8: 0.625 | GU8: 0.5 | GV8: 0.375 | GW8: 0.25 | GX8: 0.125 | GY8: 0 | HA8: =+BS11 -> 0 | HB8: =+BS12 -> 0.123046875 | HC8: =+BS13 -> 0.234375 | HD8: =+BS14 -> 0.322265625 | HE8: =+BS15 -> 0.375 | HF8: =+BS16 -> 0.380859375 | HG8: =+BS17 -> 0.328125 | HH8: =+BS18 -> 0.205078125 | HI8: =+BS19 -> 0 | HJ8: =+BS20 -> 0 | HK8: =+BS21 -> 0.205078125 | HL8: =+BS22 -> 0.328125 | HM8: =+BS23 -> 0.380859375 | HN8: =+BS24 -> 0.375 | HO8: =+BS25 -> 0.322265625 | HP8: =+BS26 -> 0.234375 | HQ8: =+BS27 -> 0.123046875 | HR8: =+BS28 -> 0
C9: =+C8+1 -> 1 | D9: 0 | E9: 1.055297852 | F9: 0.8605957031 | G9: 0.6658935547 | H9: 0.4711914062 | I9: 0.2764892578 | J9: 0.08178710938 | K9: -0.1129150391 | L9: -0.3076171875 | M9: -0.3076171875 | N9: -0.2691650391 | O9: -0.2307128906 | P9: -0.1922607422 | Q9: -0.1538085938 | R9: -0.1153564453 | S9: -0.07690429688 | T9: -0.03845214844 | U9: 0 | V9: -0.1557617188 | W9: 0.03076171875 | X9: 0.8442382812 | Y9: 0.1865234375 | Z9: -0.03076171875 | AC9: 0.03076171875 | AE9: 0 | AF9: =+$X9 -> 0.8442382812 | AG9: 0.8442382812 | AH9: =+$V9 -> -0.1557617188 | AI9: -0.1557617188 | AJ9: -0.1557617188 | AK9: -0.1557617188 | AL9: -0.1557617188 | AM9: -0.1557617188 | AN9: -0.1557617188 | AO9: -0.1557617188 | AP9: -0.1557617188 | AQ9: -0.1557617188 | AR9: -0.1557617188 | AS9: -0.1557617188 | AT9: -0.1557617188 | AU9: -0.1557617188 | AV9: =+$W9 -> 0.03076171875 | AW9: 0.03076171875 | AX9: 0.03076171875 | AY9: 0.03076171875 | AZ9: 0.03076171875 | BA9: 0.03076171875 | BB9: 0.03076171875 | BC9: 0.03076171875 | BD9: 0.03076171875 | BE9: 0.03076171875 | BF9: 0.03076171875 | BG9: 0.03076171875 | BH9: 0.03076171875 | BI9: 0.03076171875 | BJ9: 0.03076171875 | BK9: 0.03076171875 | BL9: 0 | BP9: Span | BS9: wD | BT9: X1/L1 | BU9: RA0 | BV9: RA | BW9: RB0 | BY9: RB | BZ9: LQB0 | CA9: LQB | CC9: RC0 | CE9: RC | CF9: RQB0 | CG9: RQB | CI9: SA0 | CJ9: SA1 | CK9: SA | CM9: lSB0 | CN9: lSB1 | CO9: lSB | CQ9: rSB0 | CR9: rSB1 | CS9: rSB | CU9: SC0 | CV9: SC1 | CW9: SC | GG9: x' | HA9: =+HA8/6 -> 0 | HB9: =+HB8/6 -> 0.0205078125 | HC9: 0.0390625 | HD9: 0.0537109375 | HE9: 0.0625 | HF9: 0.0634765625 | HG9: 0.0546875 | HH9: 0.0341796875 | HI9: 0 | HJ9: =+HJ8/6*Input!$B$1^2 -> 0 | HK9: =+HK8/6*Input!$B$1^2 -> 0.0341796875 | HL9: =+HL8/6*Input!$B$1^2 -> 0.0546875 | HM9: =+HM8/6*Input!$B$1^2 -> 0.0634765625 | HN9: =+HN8/6*Input!$B$1^2 -> 0.0625 | HO9: =+HO8/6*Input!$B$1^2 -> 0.0537109375 | HP9: =+HP8/6*Input!$B$1^2 -> 0.0390625 | HQ9: =+HQ8/6*Input!$B$1^2 -> 0.0205078125 | HR9: =+HR8/6*Input!$B$1^2 -> 0
C10: 2 | D10: 0 | E10: 0.8642578125 | F10: 1.728515625 | G10: 1.342773438 | H10: 0.95703125 | I10: 0.5712890625 | J10: 0.185546875 | K10: -0.2001953125 | L10: -0.5859375 | M10: -0.5859375 | N10: -0.5126953125 | O10: -0.439453125 | P10: -0.3662109375 | Q10: -0.29296875 | R10: -0.2197265625 | S10: -0.146484375 | T10: -0.0732421875 | U10: 0 | V10: -0.30859375 | W10: 0.05859375 | X10: 0.69140625 | Y10: 0.3671875 | Z10: -0.05859375 | AC10: 0.05859375 | AE10: 0 | AF10: 0.69140625 | AG10: 0.69140625 | AH10: =+$X10 -> 0.69140625 | AI10: 0.69140625 | AJ10: =+$V10 -> -0.30859375 | AK10: -0.30859375 | AL10: -0.30859375 | AM10: -0.30859375 | AN10: -0.30859375 | AO10: -0.30859375 | AP10: -0.30859375 | AQ10: -0.30859375 | AR10: -0.30859375 | AS10: -0.30859375 | AT10: -0.30859375 | AU10: -0.30859375 | AV10: 0.05859375 | AW10: 0.05859375 | AX10: 0.05859375 | AY10: 0.05859375 | AZ10: 0.05859375 | BA10: 0.05859375 | BB10: 0.05859375 | BC10: 0.05859375 | BD10: 0.05859375 | BE10: 0.05859375 | BF10: 0.05859375 | BG10: 0.05859375 | BH10: 0.05859375 | BI10: 0.05859375 | BJ10: 0.05859375 | BK10: 0.05859375 | BL10: 0
C11: 3 | D11: 0 | E11: 0.6805419922 | F11: 1.361083984 | G11: 2.041625977 | H11: 1.472167969 | I11: 0.9027099609 | J11: 0.3332519531 | K11: -0.2362060547 | L11: -0.8056640625 | M11: -0.8056640625 | N11: -0.7049560547 | O11: -0.6042480469 | P11: -0.5035400391 | Q11: -0.4028320312 | R11: -0.3021240234 | S11: -0.2014160156 | T11: -0.1007080078 | U11: 0 | V11: -0.4555664062 | W11: 0.08056640625 | X11: 0.5444335938 | Y11: 0.5361328125 | Z11: -0.08056640625 | AC11: 0.08056640625 | AE11: 0 | AF11: 0.5444335938 | AG11: 0.5444335938 | AH11: 0.5444335938 | AI11: 0.5444335938 | AJ11: =+$X11 -> 0.5444335938 | AK11: 0.5444335938 | AL11: =+$V11 -> -0.4555664062 | AM11: -0.4555664062 | AN11: -0.4555664062 | AO11: -0.4555664062 | AP11: -0.4555664062 | AQ11: -0.4555664062 | AR11: -0.4555664062 | AS11: -0.4555664062 | AT11: -0.4555664062 | AU11: -0.4555664062 | AV11: 0.08056640625 | AW11: 0.08056640625 | AX11: 0.08056640625 | AY11: 0.08056640625 | AZ11: 0.08056640625 | BA11: 0.08056640625 | BB11: 0.08056640625 | BC11: 0.08056640625 | BD11: 0.08056640625 | BE11: 0.08056640625 | BF11: 0.08056640625 | BG11: 0.08056640625 | BH11: 0.08056640625 | BI11: 0.08056640625 | BJ11: 0.08056640625 | BK11: 0.08056640625 | BL11: 0 | BP11: 1 | BQ11: 0 | BR11: =+BQ11 -> 0 | BS11: =+BQ11-BQ11^3 -> 0 | BT11: =-BS11/(2*(1+Input!$B$1)) -> 0 | BU11: =+BU12+1/8 -> 1 | BV11: =+BU11+BT11 -> 1 | BW11: 0 | BX11: =-(1+1/Input!$B$1)*BT11 -> 0 | BY11: =+BW11+BX11 -> 0 | BZ11: 0 | CA11: =+BZ11+BT11 -> 0 | CD11: =+BT11/Input!$B$1 -> 0 | CE11: =+CC11+CD11 -> 0 | CG11: =+CF11-BT11/Input!$B$1 -> 0 | CI11: =-(1-BQ11)*(1-(1-BQ11)^2)/6 -> 0 | CJ11: =-BT11/6 -> 0 | CK11: =+CI11+CJ11 -> 0 | CM11: =+BQ11*(1-BQ11^2)/6 -> 0 | CN11: =+BT11/3 -> 0 | CO11: =+CM11+CN11 -> 0 | CR11: =-BT11/3*Input!$B$1 -> 0 | CS11: =+CQ11+CR11 -> 0 | CV11: =+BT11/6*Input!$B$1 -> 0 | CW11: =+CU11+CV11 -> 0 | DC11: =+$BQ11*(1-$BQ11) -> 0 | DD11: =+$DC11/(8-$DC$8)*(8-DD$8) -> 0 | DE11: 0 | DF11: 0 | DG11: 0 | DH11: 0 | DI11: 0 | DJ11: 0 | DK11: 0 | DX11: =+DX$8*$BT11 -> 0 | DY11: 0 | DZ11: 0 | EA11: 0 | EB11: 0 | EC11: 0 | ED11: 0 | EE11: 0 | EF11: 0 | EG11: 0 | EH11: =+EH$8*$BT11 -> 0 | EI11: 0 | EJ11: 0 | EK11: 0 | EL11: 0 | EM11: 0 | EN11: 0 | EO11: 0 | ER11: =+DC11+DX11 -> 0 | ES11: =+DD11+DY11 -> 0 | ET11: =+DE11+DZ11 -> 0 | EU11: =+DF11+EA11 -> 0 | EV11: =+DG11+EB11 -> 0 | EW11: =+DH11+EC11 -> 0 | EX11: =+DI11+ED11 -> 0 | EY11: =+DJ11+EE11 -> 0 | EZ11: =+DK11+EF11 -> 0 | FA11: =+DL11+EG11 -> 0 | FB11: =+DM11+EH11 -> 0 | FC11: =+DN11+EI11 -> 0 | FD11: =+DO11+EJ11 -> 0 | FE11: =+DP11+EK11 -> 0 | FF11: =+DQ11+EL11 -> 0 | FG11: =+DR11+EM11 -> 0 | FH11: =+DS11+EN11 -> 0 | FI11: =+DT11+EO11 -> 0 | FL11: =+ER11*10 -> 0 | FM11: =+ES11*10 -> 0 | FN11: =+ET11*10 -> 0 | FO11: =+EU11*10 -> 0 | FP11: =+EV11*10 -> 0 | FQ11: =+EW11*10 -> 0 | FR11: =+EX11*10 -> 0 | FS11: =+EY11*10 -> 0 | FT11: =+EZ11*10 -> 0 | FU11: =+FA11*10 -> 0 | FV11: =+FB11*10 -> 0 | FW11: =+FC11*10 -> 0 | FX11: =+FD11*10 -> 0 | FY11: =+FE11*10 -> 0 | FZ11: =+FF11*10 -> 0 | GA11: =+FG11*10 -> 0 | GB11: =+FH11*10 -> 0 | GC11: =+FI11*10 -> 0 | GG11: =1-BQ11 -> 1 | GH11: =1/6*($GG11*GH$7*(1-($GG11^2)-(GH$7^2))) -> 0 | GI11: =1/6*($BQ11*GI$8*(1-($BQ11)^2-(GI$8)^2)) -> 0 | GJ11: =1/6*($BQ11*GJ$8*(1-($BQ11)^2-(GJ$8)^2)) -> 0 | GK11: 0 | GL11: 0 | GM11: 0 | GN11: 0 | GO11: 0 | GP11: 0 | HA11: =+HA$9*$BT11 -> 0 | HB11: 0 | HC11: 0 | HD11: 0 | HE11: 0 | HF11: 0 | HG11: 0 | HH11: 0 | HI11: 0 | HJ11: 0 | HK11: =+HK$9*$BT11 -> 0 | HL11: 0 | HM11: 0 | HN11: 0 | HO11: 0 | HP11: 0 | HQ11: 0 | HR11: 0 | HV11: =+GH11+HA11 -> 0 | HW11: =+GI11+HB11 -> 0 | HX11: =+GJ11+HC11 -> 0 | HY11: =+GK11+HD11 -> 0 | HZ11: =+GL11+HE11 -> 0 | IA11: =+GM11+HF11 -> 0 | IB11: =+GN11+HG11 -> 0 | IC11: =+GO11+HH11 -> 0 | ID11: =+GP11+HI11 -> 0 | IE11: =+GQ11+HJ11 -> 0 | IF11: =+GR11+HK11 -> 0 | IG11: =+GS11+HL11 -> 0 | IH11: =+GT11+HM11 -> 0 | II11: =+GU11+HN11 -> 0 | IJ11: =+GV11+HO11 -> 0 | IK11: =+GW11+HP11 -> 0 | IL11: =+GX11+HQ11 -> 0 | IM11: =+GY11+HR11 -> 0 | IP11: =+HV11*100 -> 0 | IQ11: =+HW11*100 -> 0 | IR11: =+HX11*100 -> 0 | IS11: =+HY11*100 -> 0 | IT11: =+HZ11*100 -> 0 | IU11: =+IA11*100 -> 0 | IV11: =+IB11*100 -> 0 | IW11: =+IC11*100 -> 0 | IX11: =+ID11*100 -> 0 | IY11: =+IE11*100 -> 0 | IZ11: =+IF11*100 -> 0 | JA11: =+IG11*100 -> 0 | JB11: =+IH11*100 -> 0 | JC11: =+II11*100 -> 0 | JD11: =+IJ11*100 -> 0 | JE11: =+IK11*100 -> 0 | JF11: =+IL11*100 -> 0 | JG11: =+IM11*100 -> 0 | JL11: =+(1-$BQ11)*JL$7*10 -> 0 | JM11: =+(1-$BQ11)*JM$7*10 -> 1.25 | JN11: 2.5 | JO11: 3.75 | JP11: 5 | JQ11: 6.25 | JR11: 7.5 | JS11: 8.75 | JT11: 10 | KE11: =+$BQ11*(1-KE$7)*10 -> 0 | KF11: =+$BQ11*(1-KF$7)*10 -> 0 | KG11: 0 | KH11: 0 | KI11: 0 | KJ11: 0 | KK11: 0 | KL11: 0 | KM11: 0 | KX11: =+JL11+DX11*10 -> 0 | KY11: =+JM11+DY11*10 -> 1.25 | KZ11: =+JN11+DZ11*10 -> 2.5 | LA11: =+JO11+EA11*10 -> 3.75 | LB11: =+JP11+EB11*10 -> 5 | LC11: =+JQ11+EC11*10 -> 6.25 | LD11: =+JR11+ED11*10 -> 7.5 | LE11: =+JS11+EE11*10 -> 8.75 | LF11: =+JT11+EF11*10 -> 10 | LG11: =+JU11+EG11*10 -> 0 | LH11: =+JV11+EH11*10 -> 0 | LI11: =+JW11+EI11*10 -> 0 | LJ11: =+JX11+EJ11*10 -> 0 | LK11: =+JY11+EK11*10 -> 0 | LL11: =+JZ11+EL11*10 -> 0 | LM11: =+KA11+EM11*10 -> 0 | LN11: =+KB11+EN11*10 -> 0 | LO11: =+KC11+EO11*10 -> 0 | LQ11: =+KE11+DX11*10 -> 0 | LR11: =+KF11+DY11*10 -> 0 | LS11: =+KG11+DZ11*10 -> 0 | LT11: =+KH11+EA11*10 -> 0 | LU11: =+KI11+EB11*10 -> 0 | LV11: =+KJ11+EC11*10 -> 0 | LW11: =+KK11+ED11*10 -> 0 | LX11: =+KL11+EE11*10 -> 0 | LY11: =+KM11+EF11*10 -> 0 | LZ11: =+KN11+EG11*10 -> 0 | MA11: =+KO11+EH11*10 -> 0 | MB11: =+KP11+EI11*10 -> 0 | MC11: =+KQ11+EJ11*10 -> 0 | MD11: =+KR11+EK11*10 -> 0 | ME11: =+KS11+EL11*10 -> 0 | MF11: =+KT11+EM11*10 -> 0 | MG11: =+KU11+EN11*10 -> 0 | MH11: =+KV11+EO11*10 -> 0
C12: 4 | D12: 0 | E12: 0.5078125 | F12: 1.015625 | G12: 1.5234375 | H12: 2.03125 | I12: 1.2890625 | J12: 0.546875 | K12: -0.1953125 | L12: -0.9375 | M12: -0.9375 | N12: -0.8203125 | O12: -0.703125 | P12: -0.5859375 | Q12: -0.46875 | R12: -0.3515625 | S12: -0.234375 | T12: -0.1171875 | U12: 0 | V12: -0.59375 | W12: 0.09375 | X12: 0.40625 | Y12: 0.6875 | Z12: -0.09375 | AC12: 0.09375 | AE12: 0 | AF12: 0.40625 | AG12: 0.40625 | AH12: 0.40625 | AI12: 0.40625 | AJ12: 0.40625 | AK12: 0.40625 | AL12: =+$X12 -> 0.40625 | AM12: 0.40625 | AN12: =+$V12 -> -0.59375 | AO12: -0.59375 | AP12: -0.59375 | AQ12: -0.59375 | AR12: -0.59375 | AS12: -0.59375 | AT12: -0.59375 | AU12: -0.59375 | AV12: 0.09375 | AW12: 0.09375 | AX12: 0.09375 | AY12: 0.09375 | AZ12: 0.09375 | BA12: 0.09375 | BB12: 0.09375 | BC12: 0.09375 | BD12: 0.09375 | BE12: 0.09375 | BF12: 0.09375 | BG12: 0.09375 | BH12: 0.09375 | BI12: 0.09375 | BJ12: 0.09375 | BK12: 0.09375 | BL12: 0 | BQ12: =+BQ11+1/8 -> 0.125 | BR12: =+BQ12 -> 0.125 | BS12: =+BQ12-BQ12^3 -> 0.123046875 | BT12: =-BS12/(2*(1+Input!$B$1)) -> -0.03076171875 | BU12: 0.875 | BV12: 0.8442382812 | BW12: =+BW11+1/8 -> 0.125 | BX12: =-(1+1/Input!$B$1)*BT12 -> 0.0615234375 | BY12: 0.1865234375 | BZ12: =+BZ11-1/8 -> -0.125 | CA12: -0.1557617188 | CD12: =+BT12/Input!$B$1 -> -0.03076171875 | CE12: -0.03076171875 | CG12: =+CF12-BT12/Input!$B$1 -> 0.03076171875 | CI12: =-(1-BQ12)*(1-(1-BQ12)^2)/6 -> -0.0341796875 | CJ12: 0.005126953125 | CK12: -0.02905273438 | CM12: =+BQ12*(1-BQ12^2)/6 -> 0.0205078125 | CN12: -0.01025390625 | CO12: 0.01025390625 | CR12: =-BT12/3*Input!$B$1 -> 0.01025390625 | CS12: 0.01025390625 | CV12: =+BT12/6*Input!$B$1 -> -0.005126953125 | CW12: -0.005126953125 | DC12: =+$DD12/$DD$8*DC$8 -> 0 | DD12: =+$BQ12*(1-$BQ12) -> 0.109375 | DE12: =+$DD12/(8-$DD$8)*(8-DE$8) -> 0.09375 | DF12: 0.078125 | DG12: 0.0625 | DH12: 0.046875 | DI12: 0.03125 | DJ12: 0.015625 | DK12: 0 | DX12: 0 | DY12: -0.003845214844 | DZ12: -0.007690429688 | EA12: -0.01153564453 | EB12: -0.01538085938 | EC12: -0.01922607422 | ED12: -0.02307128906 | EE12: -0.02691650391 | EF12: -0.03076171875 | EG12: -0.03076171875 | EH12: -0.02691650391 | EI12: -0.02307128906 | EJ12: -0.01922607422 | EK12: -0.01538085938 | EL12: -0.01153564453 | EM12: -0.007690429688 | EN12: -0.003845214844 | EO12: 0 | ER12: 0 | ES12: 0.1055297852 | ET12: 0.08605957031 | EU12: 0.06658935547 | EV12: 0.04711914062 | EW12: 0.02764892578 | EX12: 0.008178710938 | EY12: -0.01129150391 | EZ12: -0.03076171875 | FA12: -0.03076171875 | FB12: -0.02691650391 | FC12: -0.02307128906 | FD12: -0.01922607422 | FE12: -0.01538085938 | FF12: -0.01153564453 | FG12: -0.007690429688 | FH12: -0.003845214844 | FI12: 0 | FL12: 0 | FM12: 1.055297852 | FN12: 0.8605957031 | FO12: 0.6658935547 | FP12: 0.4711914062 | FQ12: 0.2764892578 | FR12: 0.08178710938 | FS12: -0.1129150391 | FT12: -0.3076171875 | FU12: -0.3076171875 | FV12: -0.2691650391 | FW12: -0.2307128906 | FX12: -0.1922607422 | FY12: -0.1538085938 | FZ12: -0.1153564453 | GA12: -0.07690429688 | GB12: -0.03845214844 | GC12: 0 | GG12: =1-BQ12 -> 0.875 | GH12: 0 | GI12: =1/6*($GG12*GI$7*(1-($GG12^2)-(GI$7^2))) -> 0.003987630208 | GJ12: 0.006591796875 | GK12: 0.007731119792 | GL12: 0.007649739583 | GM12: 0.006591796875 | GN12: 0.004801432292 | GO12: 0.002522786458 | GP12: 0 | HA12: 0 | HB12: -0.0006308555603 | HC12: -0.001201629639 | HD12: -0.001652240753 | HE12: -0.001922607422 | HF12: -0.001952648163 | HG12: -0.001682281494 | HH12: -0.001051425934 | HI12: 0 | HJ12: 0 | HK12: -0.001051425934 | HL12: -0.001682281494 | HM12: -0.001952648163 | HN12: -0.001922607422 | HO12: -0.001652240753 | HP12: -0.001201629639 | HQ12: -0.0006308555603 | HR12: 0 | HV12: 0 | HW12: 0.003356774648 | HX12: 0.005390167236 | HY12: 0.006078879038 | HZ12: 0.005727132161 | IA12: 0.004639148712 | IB12: 0.003119150798 | IC12: 0.001471360524 | ID12: 0 | IE12: 0 | IF12: -0.001051425934 | IG12: -0.001682281494 | IH12: -0.001952648163 | II12: -0.001922607422 | IJ12: -0.001652240753 | IK12: -0.001201629639 | IL12: -0.0006308555603 | IM12: 0 | IP12: 0 | IQ12: 0.3356774648 | IR12: 0.5390167236 | IS12: 0.6078879038 | IT12: 0.5727132161 | IU12: 0.4639148712 | IV12: 0.3119150798 | IW12: 0.1471360524 | IX12: 0 | IY12: 0 | IZ12: -0.1051425934 | JA12: -0.1682281494 | JB12: -0.1952648163 | JC12: -0.1922607422 | JD12: -0.1652240753 | JE12: -0.1201629639 | JF12: -0.06308555603 | JG12: 0 | JL12: =+(1-$BQ12)*JL$7*10 -> 0 | JM12: 1.09375 | JN12: 2.1875 | JO12: 3.28125 | JP12: 4.375 | JQ12: 5.46875 | JR12: 6.5625 | JS12: 7.65625 | JT12: 8.75 | KE12: =+$BQ12*(1-KE$7)*10 -> 1.25 | KF12: 1.09375 | KG12: 0.9375 | KH12: 0.78125 | KI12: 0.625 | KJ12: 0.46875 | KK12: 0.3125 | KL12: 0.15625 | KM12: 0 | KX12: 0 | KY12: 1.055297852 | KZ12: 2.110595703 | LA12: 3.165893555 | LB12: 4.221191406 | LC12: 5.276489258 | LD12: 6.331787109 | LE12: 7.387084961 | LF12: 8.442382812 | LG12: -0.3076171875 | LH12: -0.2691650391 | LI12: -0.2307128906 | LJ12: -0.1922607422 | LK12: -0.1538085938 | LL12: -0.1153564453 | LM12: -0.07690429688 | LN12: -0.03845214844 | LO12: 0 | LQ12: 1.25 | LR12: 1.055297852 | LS12: 0.8605957031 | LT12: 0.6658935547 | LU12: 0.4711914062 | LV12: 0.2764892578 | LW12: 0.08178710938 | LX12: -0.1129150391 | LY12: -0.3076171875 | LZ12: -0.3076171875 | MA12: -0.2691650391 | MB12: -0.2307128906 | MC12: -0.1922607422 | MD12: -0.1538085938 | ME12: -0.1153564453 | MF12: -0.07690429688 | MG12: -0.03845214844 | MH12: 0
C13: 5 | D13: 0 | E13: 0.3497314453 | F13: 0.6994628906 | G13: 1.049194336 | H13: 1.398925781 | I13: 1.748657227 | J13: 0.8483886719 | K13: -0.05187988281 | L13: -0.9521484375 | M13: -0.9521484375 | N13: -0.8331298828 | O13: -0.7141113281 | P13: -0.5950927734 | Q13: -0.4760742188 | R13: -0.3570556641 | S13: -0.2380371094 | T13: -0.1190185547 | U13: 0 | V13: -0.7202148438 | W13: 0.09521484375 | X13: 0.2797851562 | Y13: 0.8154296875 | Z13: -0.09521484375 | AC13: 0.09521484375 | AE13: 0 | AF13: 0.2797851562 | AG13: 0.2797851562 | AH13: 0.2797851562 | AI13: 0.2797851562 | AJ13: 0.2797851562 | AK13: 0.2797851562 | AL13: 0.2797851562 | AM13: 0.2797851562 | AN13: =+$X13 -> 0.2797851562 | AO13: 0.2797851562 | AP13: =+$V13 -> -0.7202148438 | AQ13: -0.7202148438 | AR13: -0.7202148438 | AS13: -0.7202148438 | AT13: -0.7202148438 | AU13: -0.7202148438 | AV13: 0.09521484375 | AW13: 0.09521484375 | AX13: 0.09521484375 | AY13: 0.09521484375 | AZ13: 0.09521484375 | BA13: 0.09521484375 | BB13: 0.09521484375 | BC13: 0.09521484375 | BD13: 0.09521484375 | BE13: 0.09521484375 | BF13: 0.09521484375 | BG13: 0.09521484375 | BH13: 0.09521484375 | BI13: 0.09521484375 | BJ13: 0.09521484375 | BK13: 0.09521484375 | BL13: 0 | BQ13: =+BQ12+1/8 -> 0.25 | BR13: 0.25 | BS13: 0.234375 | BT13: =-BS13/(2*(1+Input!$B$1)) -> -0.05859375 | BU13: 0.75 | BV13: 0.69140625 | BW13: =+BW12+1/8 -> 0.25 | BX13: =-(1+1/Input!$B$1)*BT13 -> 0.1171875 | BY13: 0.3671875 | BZ13: =+BZ12-1/8 -> -0.25 | CA13: -0.30859375 | CD13: =+BT13/Input!$B$1 -> -0.05859375 | CE13: -0.05859375 | CG13: =+CF13-BT13/Input!$B$1 -> 0.05859375 | CI13: -0.0546875 | CJ13: 0.009765625 | CK13: -0.044921875 | CM13: 0.0390625 | CN13: -0.01953125 | CO13: 0.01953125 | CR13: =-BT13/3*Input!$B$1 -> 0.01953125 | CS13: 0.01953125 | CV13: =+BT13/6*Input!$B$1 -> -0.009765625 | CW13: -0.009765625 | DC13: =+$DE13/$DE$8*DC$8 -> 0 | DD13: =+$DE13/$DE$8*DD$8 -> 0.09375 | DE13: =+$BQ13*(1-$BQ13) -> 0.1875 | DF13: =+$DE13/(8-$DE$8)*(8-DF$8) -> 0.15625 | DG13: 0.125 | DH13: 0.09375 | DI13: 0.0625 | DJ13: 0.03125 | DK13: 0 | DX13: 0 | DY13: -0.00732421875 | DZ13: -0.0146484375 | EA13: -0.02197265625 | EB13: -0.029296875 | EC13: -0.03662109375 | ED13: -0.0439453125 | EE13: -0.05126953125 | EF13: -0.05859375 | EG13: -0.05859375 | EH13: -0.05126953125 | EI13: -0.0439453125 | EJ13: -0.03662109375 | EK13: -0.029296875 | EL13: -0.02197265625 | EM13: -0.0146484375 | EN13: -0.00732421875 | EO13: 0 | ER13: 0 | ES13: 0.08642578125 | ET13: 0.1728515625 | EU13: 0.1342773438 | EV13: 0.095703125 | EW13: 0.05712890625 | EX13: 0.0185546875 | EY13: -0.02001953125 | EZ13: -0.05859375 | FA13: -0.05859375 | FB13: -0.05126953125 | FC13: -0.0439453125 | FD13: -0.03662109375 | FE13: -0.029296875 | FF13: -0.02197265625 | FG13: -0.0146484375 | FH13: -0.00732421875 | FI13: 0 | FL13: 0 | FM13: 0.8642578125 | FN13: 1.728515625 | FO13: 1.342773438 | FP13: 0.95703125 | FQ13: 0.5712890625 | FR13: 0.185546875 | FS13: -0.2001953125 | FT13: -0.5859375 | FU13: -0.5859375 | FV13: -0.5126953125 | FW13: -0.439453125 | FX13: -0.3662109375 | FY13: -0.29296875 | FZ13: -0.2197265625 | GA13: -0.146484375 | GB13: -0.0732421875 | GC13: 0 | GG13: 0.75 | GH13: 0 | GI13: 0.006591796875 | GJ13: =1/6*($GG13*GJ$7*(1-($GG13^2)-(GJ$7^2))) -> 0.01171875 | GK13: 0.01424153646 | GL13: 0.01432291667 | GM13: 0.01245117188 | GN13: 0.009114583333 | GO13: 0.004801432292 | GP13: 0 | HA13: 0 | HB13: -0.001201629639 | HC13: -0.002288818359 | HD13: -0.003147125244 | HE13: -0.003662109375 | HF13: -0.003719329834 | HG13: -0.003204345703 | HH13: -0.002002716064 | HI13: 0 | HJ13: 0 | HK13: -0.002002716064 | HL13: -0.003204345703 | HM13: -0.003719329834 | HN13: -0.003662109375 | HO13: -0.003147125244 | HP13: -0.002288818359 | HQ13: -0.001201629639 | HR13: 0 | HV13: 0 | HW13: 0.005390167236 | HX13: 0.009429931641 | HY13: 0.01109441121 | HZ13: 0.01066080729 | IA13: 0.008731842041 | IB13: 0.00591023763 | IC13: 0.002798716227 | ID13: 0 | IE13: 0 | IF13: -0.002002716064 | IG13: -0.003204345703 | IH13: -0.003719329834 | II13: -0.003662109375 | IJ13: -0.003147125244 | IK13: -0.002288818359 | IL13: -0.001201629639 | IM13: 0 | IP13: 0 | IQ13: 0.5390167236 | IR13: 0.9429931641 | IS13: 1.109441121 | IT13: 1.066080729 | IU13: 0.8731842041 | IV13: 0.591023763 | IW13: 0.2798716227 | IX13: 0 | IY13: 0 | IZ13: -0.2002716064 | JA13: -0.3204345703 | JB13: -0.3719329834 | JC13: -0.3662109375 | JD13: -0.3147125244 | JE13: -0.2288818359 | JF13: -0.1201629639 | JG13: 0 | JL13: 0 | JM13: 0.9375 | JN13: 1.875 | JO13: 2.8125 | JP13: 3.75 | JQ13: 4.6875 | JR13: 5.625 | JS13: 6.5625 | JT13: 7.5 | KE13: 2.5 | KF13: 2.1875 | KG13: 1.875 | KH13: 1.5625 | KI13: 1.25 | KJ13: 0.9375 | KK13: 0.625 | KL13: 0.3125 | KM13: 0 | KX13: 0 | KY13: 0.8642578125 | KZ13: 1.728515625 | LA13: 2.592773438 | LB13: 3.45703125 | LC13: 4.321289062 | LD13: 5.185546875 | LE13: 6.049804688 | LF13: 6.9140625 | LG13: -0.5859375 | LH13: -0.5126953125 | LI13: -0.439453125 | LJ13: -0.3662109375 | LK13: -0.29296875 | LL13: -0.2197265625 | LM13: -0.146484375 | LN13: -0.0732421875 | LO13: 0 | LQ13: 2.5 | LR13: 2.114257812 | LS13: 1.728515625 | LT13: 1.342773438 | LU13: 0.95703125 | LV13: 0.5712890625 | LW13: 0.185546875 | LX13: -0.2001953125 | LY13: -0.5859375 | LZ13: -0.5859375 | MA13: -0.5126953125 | MB13: -0.439453125 | MC13: -0.3662109375 | MD13: -0.29296875 | ME13: -0.2197265625 | MF13: -0.146484375 | MG13: -0.0732421875 | MH13: 0
C14: 6 | D14: 0 | E14: 0.2099609375 | F14: 0.419921875 | G14: 0.6298828125 | H14: 0.83984375 | I14: 1.049804688 | J14: 1.259765625 | K14: 0.2197265625 | L14: -0.8203125 | M14: -0.8203125 | N14: -0.7177734375 | O14: -0.615234375 | P14: -0.5126953125 | Q14: -0.41015625 | R14: -0.3076171875 | S14: -0.205078125 | T14: -0.1025390625 | U14: 0 | V14: -0.83203125 | W14: 0.08203125 | X14: 0.16796875 | Y14: 0.9140625 | Z14: -0.08203125 | AC14: 0.08203125 | AE14: 0 | AF14: 0.16796875 | AG14: 0.16796875 | AH14: 0.16796875 | AI14: 0.16796875 | AJ14: 0.16796875 | AK14: 0.16796875 | AL14: 0.16796875 | AM14: 0.16796875 | AN14: 0.16796875 | AO14: 0.16796875 | AP14: =+$X14 -> 0.16796875 | AQ14: =+$X14 -> 0.16796875 | AR14: =+$V14 -> -0.83203125 | AS14: =+$V14 -> -0.83203125 | AT14: =+$V14 -> -0.83203125 | AU14: =+$V14 -> -0.83203125 | AV14: 0.08203125 | AW14: 0.08203125 | AX14: 0.08203125 | AY14: 0.08203125 | AZ14: 0.08203125 | BA14: 0.08203125 | BB14: 0.08203125 | BC14: 0.08203125 | BD14: 0.08203125 | BE14: 0.08203125 | BF14: 0.08203125 | BG14: 0.08203125 | BH14: 0.08203125 | BI14: 0.08203125 | BJ14: 0.08203125 | BK14: 0.08203125 | BL14: 0 | BQ14: =+BQ13+1/8 -> 0.375 | BR14: 0.375 | BS14: 0.322265625 | BT14: =-BS14/(2*(1+Input!$B$1)) -> -0.08056640625 | BU14: 0.625 | BV14: 0.5444335938 | BW14: 0.375 | BX14: =-(1+1/Input!$B$1)*BT14 -> 0.1611328125 | BY14: 0.5361328125 | BZ14: -0.375 | CA14: -0.4555664062 | CD14: =+BT14/Input!$B$1 -> -0.08056640625 | CE14: -0.08056640625 | CG14: =+CF14-BT14/Input!$B$1 -> 0.08056640625 | CI14: -0.0634765625 | CJ14: 0.01342773438 | CK14: -0.05004882812 | CM14: 0.0537109375 | CN14: -0.02685546875 | CO14: 0.02685546875 | CR14: =-BT14/3*Input!$B$1 -> 0.02685546875 | CS14: 0.02685546875 | CV14: =+BT14/6*Input!$B$1 -> -0.01342773438 | CW14: -0.01342773438 | DC14: =+$DF14/$DF$8*DC$8 -> 0 | DD14: =+$DF14/$DF$8*DD$8 -> 0.078125 | DE14: =+$DF14/$DF$8*DE$8 -> 0.15625 | DF14: =+$BQ14*(1-$BQ14) -> 0.234375 | DG14: =+$DF14/(8-$DF$8)*(8-DG$8) -> 0.1875 | DH14: =+$DF14/(8-$DF$8)*(8-DH$8) -> 0.140625 | DI14: =+$DF14/(8-$DF$8)*(8-DI$8) -> 0.09375 | DJ14: =+$DF14/(8-$DF$8)*(8-DJ$8) -> 0.046875 | DK14: =+$DF14/(8-$DF$8)*(8-DK$8) -> 0 | DX14: 0 | DY14: -0.01007080078 | DZ14: -0.02014160156 | EA14: -0.03021240234 | EB14: -0.04028320312 | EC14: -0.05035400391 | ED14: -0.06042480469 | EE14: -0.07049560547 | EF14: -0.08056640625 | EG14: -0.08056640625 | EH14: -0.07049560547 | EI14: -0.06042480469 | EJ14: -0.05035400391 | EK14: -0.04028320312 | EL14: -0.03021240234 | EM14: -0.02014160156 | EN14: -0.01007080078 | EO14: 0 | ER14: 0 | ES14: 0.06805419922 | ET14: 0.1361083984 | EU14: 0.2041625977 | EV14: 0.1472167969 | EW14: 0.09027099609 | EX14: 0.03332519531 | EY14: -0.02362060547 | EZ14: -0.08056640625 | FA14: -0.08056640625 | FB14: -0.07049560547 | FC14: -0.06042480469 | FD14: -0.05035400391 | FE14: -0.04028320312 | FF14: -0.03021240234 | FG14: -0.02014160156 | FH14: -0.01007080078 | FI14: 0 | FL14: 0 | FM14: 0.6805419922 | FN14: 1.361083984 | FO14: 2.041625977 | FP14: 1.472167969 | FQ14: 0.9027099609 | FR14: 0.3332519531 | FS14: -0.2362060547 | FT14: -0.8056640625 | FU14: -0.8056640625 | FV14: -0.7049560547 | FW14: -0.6042480469 | FX14: -0.5035400391 | FY14: -0.4028320312 | FZ14: -0.3021240234 | GA14: -0.2014160156 | GB14: -0.1007080078 | GC14: 0 | GG14: 0.625 | GH14: 0 | GI14: 0.007731119792 | GJ14: 0.01424153646 | GK14: =1/6*($GG14*GK$7*(1-($GG14^2)-(GK$7^2))) -> 0.01831054688 | GL14: 0.01904296875 | GM14: 0.01684570312 | GN14: 0.01245117188 | GO14: 0.006591796875 | GP14: 0 | HA14: 0 | HB14: -0.001652240753 | HC14: -0.003147125244 | HD14: -0.004327297211 | HE14: -0.005035400391 | HF14: -0.005114078522 | HG14: -0.004405975342 | HH14: -0.002753734589 | HI14: 0 | HJ14: 0 | HK14: -0.002753734589 | HL14: -0.004405975342 | HM14: -0.005114078522 | HN14: -0.005035400391 | HO14: -0.004327297211 | HP14: -0.003147125244 | HQ14: -0.001652240753 | HR14: 0 | HV14: 0 | HW14: 0.006078879038 | HX14: 0.01109441121 | HY14: 0.01398324966 | HZ14: 0.01400756836 | IA14: 0.0117316246 | IB14: 0.008045196533 | IC14: 0.003838062286 | ID14: 0 | IE14: 0 | IF14: -0.002753734589 | IG14: -0.004405975342 | IH14: -0.005114078522 | II14: -0.005035400391 | IJ14: -0.004327297211 | IK14: -0.003147125244 | IL14: -0.001652240753 | IM14: 0 | IP14: 0 | IQ14: 0.6078879038 | IR14: 1.109441121 | IS14: 1.398324966 | IT14: 1.400756836 | IU14: 1.17316246 | IV14: 0.8045196533 | IW14: 0.3838062286 | IX14: 0 | IY14: 0 | IZ14: -0.2753734589 | JA14: -0.4405975342 | JB14: -0.5114078522 | JC14: -0.5035400391 | JD14: -0.4327297211 | JE14: -0.3147125244 | JF14: -0.1652240753 | JG14: 0 | JL14: 0 | JM14: 0.78125 | JN14: 1.5625 | JO14: 2.34375 | JP14: 3.125 | JQ14: 3.90625 | JR14: 4.6875 | JS14: 5.46875 | JT14: 6.25 | KE14: 3.75 | KF14: 3.28125 | KG14: 2.8125 | KH14: 2.34375 | KI14: 1.875 | KJ14: 1.40625 | KK14: 0.9375 | KL14: 0.46875 | KM14: 0 | KX14: 0 | KY14: 0.6805419922 | KZ14: 1.361083984 | LA14: 2.041625977 | LB14: 2.722167969 | LC14: 3.402709961 | LD14: 4.083251953 | LE14: 4.763793945 | LF14: 5.444335938 | LG14: -0.8056640625 | LH14: -0.7049560547 | LI14: -0.6042480469 | LJ14: -0.5035400391 | LK14: -0.4028320312 | LL14: -0.3021240234 | LM14: -0.2014160156 | LN14: -0.1007080078 | LO14: 0 | LQ14: 3.75 | LR14: 3.180541992 | LS14: 2.611083984 | LT14: 2.041625977 | LU14: 1.472167969 | LV14: 0.9027099609 | LW14: 0.3332519531 | LX14: -0.2362060547 | LY14: -0.8056640625 | LZ14: -0.8056640625 | MA14: -0.7049560547 | MB14: -0.6042480469 | MC14: -0.5035400391 | MD14: -0.4028320312 | ME14: -0.3021240234 | MF14: -0.2014160156 | MG14: -0.1007080078 | MH14: 0
C15: 7 | D15: 0 | E15: 0.09216308594 | F15: 0.1843261719 | G15: 0.2764892578 | H15: 0.3686523438 | I15: 0.4608154297 | J15: 0.5529785156 | K15: 0.6451416016 | L15: -0.5126953125 | M15: -0.5126953125 | N15: -0.4486083984 | O15: -0.3845214844 | P15: -0.3204345703 | Q15: -0.2563476562 | R15: -0.1922607422 | S15: -0.1281738281 | T15: -0.06408691406 | U15: 0 | V15: -0.9262695312 | W15: 0.05126953125 | X15: 0.07373046875 | Y15: 0.9775390625 | Z15: -0.05126953125 | AC15: 0.05126953125 | AE15: 0 | AF15: 0.07373046875 | AG15: 0.07373046875 | AH15: 0.07373046875 | AI15: 0.07373046875 | AJ15: 0.07373046875 | AK15: 0.07373046875 | AL15: 0.07373046875 | AM15: 0.07373046875 | AN15: 0.07373046875 | AO15: 0.07373046875 | AP15: =+$X15 -> 0.07373046875 | AQ15: =+$X15 -> 0.07373046875 | AR15: =+$X15 -> 0.07373046875 | AS15: =+$X15 -> 0.07373046875 | AT15: =+$V15 -> -0.9262695312 | AU15: =+$V15 -> -0.9262695312 | AV15: 0.05126953125 | AW15: 0.05126953125 | AX15: 0.05126953125 | AY15: 0.05126953125 | AZ15: 0.05126953125 | BA15: 0.05126953125 | BB15: 0.05126953125 | BC15: 0.05126953125 | BD15: 0.05126953125 | BE15: 0.05126953125 | BF15: 0.05126953125 | BG15: 0.05126953125 | BH15: 0.05126953125 | BI15: 0.05126953125 | BJ15: 0.05126953125 | BK15: 0.05126953125 | BL15: 0 | BQ15: 0.5 | BR15: 0.5 | BS15: 0.375 | BT15: =-BS15/(2*(1+Input!$B$1)) -> -0.09375 | BU15: 0.5 | BV15: 0.40625 | BW15: 0.5 | BX15: =-(1+1/Input!$B$1)*BT15 -> 0.1875 | BY15: 0.6875 | BZ15: -0.5 | CA15: -0.59375 | CD15: =+BT15/Input!$B$1 -> -0.09375 | CE15: -0.09375 | CG15: =+CF15-BT15/Input!$B$1 -> 0.09375 | CI15: -0.0625 | CJ15: 0.015625 | CK15: -0.046875 | CM15: 0.0625 | CN15: -0.03125 | CO15: 0.03125 | CR15: =-BT15/3*Input!$B$1 -> 0.03125 | CS15: 0.03125 | CV15: =+BT15/6*Input!$B$1 -> -0.015625 | CW15: -0.015625 | DC15: =+$DG15/$DG$8*DC$8 -> 0 | DD15: =+$DG15/$DG$8*DD$8 -> 0.0625 | DE15: =+$DG15/$DG$8*DE$8 -> 0.125 | DF15: =+$DG15/$DG$8*DF$8 -> 0.1875 | DG15: =+$BQ15*(1-$BQ15) -> 0.25 | DH15: =+$DG15/(8-$DG$8)*(8-DH$8) -> 0.1875 | DI15: =+$DG15/(8-$DG$8)*(8-DI$8) -> 0.125 | DJ15: =+$DG15/(8-$DG$8)*(8-DJ$8) -> 0.0625 | DK15: =+$DG15/(8-$DG$8)*(8-DK$8) -> 0 | DX15: 0 | DY15: -0.01171875 | DZ15: -0.0234375 | EA15: -0.03515625 | EB15: -0.046875 | EC15: -0.05859375 | ED15: -0.0703125 | EE15: -0.08203125 | EF15: -0.09375 | EG15: -0.09375 | EH15: -0.08203125 | EI15: -0.0703125 | EJ15: -0.05859375 | EK15: -0.046875 | EL15: -0.03515625 | EM15: -0.0234375 | EN15: -0.01171875 | EO15: 0 | ER15: 0 | ES15: 0.05078125 | ET15: 0.1015625 | EU15: 0.15234375 | EV15: 0.203125 | EW15: 0.12890625 | EX15: 0.0546875 | EY15: -0.01953125 | EZ15: -0.09375 | FA15: -0.09375 | FB15: -0.08203125 | FC15: -0.0703125 | FD15: -0.05859375 | FE15: -0.046875 | FF15: -0.03515625 | FG15: -0.0234375 | FH15: -0.01171875 | FI15: 0 | FL15: 0 | FM15: 0.5078125 | FN15: 1.015625 | FO15: 1.5234375 | FP15: 2.03125 | FQ15: 1.2890625 | FR15: 0.546875 | FS15: -0.1953125 | FT15: -0.9375 | FU15: -0.9375 | FV15: -0.8203125 | FW15: -0.703125 | FX15: -0.5859375 | FY15: -0.46875 | FZ15: -0.3515625 | GA15: -0.234375 | GB15: -0.1171875 | GC15: 0 | GG15: 0.5 | GH15: 0 | GI15: 0.007649739583 | GJ15: 0.01432291667 | GK15: 0.01904296875 | GL15: =1/6*($GG15*GL$7*(1-($GG15^2)-(GL$7^2))) -> 0.02083333333 | GM15: 0.01904296875 | GN15: 0.01432291667 | GO15: 0.007649739583 | GP15: 0 | HA15: 0 | HB15: -0.001922607422 | HC15: -0.003662109375 | HD15: -0.005035400391 | HE15: -0.005859375 | HF15: -0.005950927734 | HG15: -0.005126953125 | HH15: -0.003204345703 | HI15: 0 | HJ15: 0 | HK15: -0.003204345703 | HL15: -0.005126953125 | HM15: -0.005950927734 | HN15: -0.005859375 | HO15: -0.005035400391 | HP15: -0.003662109375 | HQ15: -0.001922607422 | HR15: 0 | HV15: 0 | HW15: 0.005727132161 | HX15: 0.01066080729 | HY15: 0.01400756836 | HZ15: 0.01497395833 | IA15: 0.01309204102 | IB15: 0.009195963542 | IC15: 0.00444539388 | ID15: 0 | IE15: 0 | IF15: -0.003204345703 | IG15: -0.005126953125 | IH15: -0.005950927734 | II15: -0.005859375 | IJ15: -0.005035400391 | IK15: -0.003662109375 | IL15: -0.001922607422 | IM15: 0 | IP15: 0 | IQ15: 0.5727132161 | IR15: 1.066080729 | IS15: 1.400756836 | IT15: 1.497395833 | IU15: 1.309204102 | IV15: 0.9195963542 | IW15: 0.444539388 | IX15: 0 | IY15: 0 | IZ15: -0.3204345703 | JA15: -0.5126953125 | JB15: -0.5950927734 | JC15: -0.5859375 | JD15: -0.5035400391 | JE15: -0.3662109375 | JF15: -0.1922607422 | JG15: 0 | JL15: 0 | JM15: 0.625 | JN15: 1.25 | JO15: 1.875 | JP15: 2.5 | JQ15: 3.125 | JR15: 3.75 | JS15: 4.375 | JT15: 5 | KE15: 5 | KF15: 4.375 | KG15: 3.75 | KH15: 3.125 | KI15: 2.5 | KJ15: 1.875 | KK15: 1.25 | KL15: 0.625 | KM15: 0 | KX15: 0 | KY15: 0.5078125 | KZ15: 1.015625 | LA15: 1.5234375 | LB15: 2.03125 | LC15: 2.5390625 | LD15: 3.046875 | LE15: 3.5546875 | LF15: 4.0625 | LG15: -0.9375 | LH15: -0.8203125 | LI15: -0.703125 | LJ15: -0.5859375 | LK15: -0.46875 | LL15: -0.3515625 | LM15: -0.234375 | LN15: -0.1171875 | LO15: 0 | LQ15: 5 | LR15: 4.2578125 | LS15: 3.515625 | LT15: 2.7734375 | LU15: 2.03125 | LV15: 1.2890625 | LW15: 0.546875 | LX15: -0.1953125 | LY15: -0.9375 | LZ15: -0.9375 | MA15: -0.8203125 | MB15: -0.703125 | MC15: -0.5859375 | MD15: -0.46875 | ME15: -0.3515625 | MF15: -0.234375 | MG15: -0.1171875 | MH15: 0
C16: 8 | D16: 0 | E16: 0 | F16: 0 | G16: 0 | H16: 0 | I16: 0 | J16: 0 | K16: 0 | L16: 0 | M16: 0 | N16: 0 | O16: 0 | P16: 0 | Q16: 0 | R16: 0 | S16: 0 | T16: 0 | U16: 0 | V16: -1 | W16: 0 | X16: 0 | Y16: 1 | Z16: 0 | AC16: 0 | BQ16: 0.625 | BR16: 0.625 | BS16: 0.380859375 | BT16: =-BS16/(2*(1+Input!$B$1)) -> -0.09521484375 | BU16: 0.375 | BV16: 0.2797851562 | BW16: 0.625 | BX16: =-(1+1/Input!$B$1)*BT16 -> 0.1904296875 | BY16: 0.8154296875 | BZ16: -0.625 | CA16: -0.7202148438 | CD16: =+BT16/Input!$B$1 -> -0.09521484375 | CE16: -0.09521484375 | CG16: =+CF16-BT16/Input!$B$1 -> 0.09521484375 | CI16: -0.0537109375 | CJ16: 0.01586914062 | CK16: -0.03784179688 | CM16: 0.0634765625 | CN16: -0.03173828125 | CO16: 0.03173828125 | CR16: =-BT16/3*Input!$B$1 -> 0.03173828125 | CS16: 0.03173828125 | CV16: =+BT16/6*Input!$B$1 -> -0.01586914062 | CW16: -0.01586914062 | DC16: =+$DH16/$DH$8*DC$8 -> 0 | DD16: =+$DH16/$DH$8*DD$8 -> 0.046875 | DE16: =+$DH16/$DH$8*DE$8 -> 0.09375 | DF16: =+$DH16/$DH$8*DF$8 -> 0.140625 | DG16: =+$DH16/$DH$8*DG$8 -> 0.1875 | DH16: =+$BQ16*(1-$BQ16) -> 0.234375 | DI16: =+$DH16/(8-$DH$8)*(8-DI$8) -> 0.15625 | DJ16: =+$DH16/(8-$DH$8)*(8-DJ$8) -> 0.078125 | DK16: =+$DH16/(8-$DH$8)*(8-DK$8) -> 0 | DX16: 0 | DY16: -0.01190185547 | DZ16: -0.02380371094 | EA16: -0.03570556641 | EB16: -0.04760742188 | EC16: -0.05950927734 | ED16: -0.07141113281 | EE16: -0.08331298828 | EF16: -0.09521484375 | EG16: -0.09521484375 | EH16: -0.08331298828 | EI16: -0.07141113281 | EJ16: -0.05950927734 | EK16: -0.04760742188 | EL16: -0.03570556641 | EM16: -0.02380371094 | EN16: -0.01190185547 | EO16: 0 | ER16: 0 | ES16: 0.03497314453 | ET16: 0.06994628906 | EU16: 0.1049194336 | EV16: 0.1398925781 | EW16: 0.1748657227 | EX16: 0.08483886719 | EY16: -0.005187988281 | EZ16: -0.09521484375 | FA16: -0.09521484375 | FB16: -0.08331298828 | FC16: -0.07141113281 | FD16: -0.05950927734 | FE16: -0.04760742188 | FF16: -0.03570556641 | FG16: -0.02380371094 | FH16: -0.01190185547 | FI16: 0 | FL16: 0 | FM16: 0.3497314453 | FN16: 0.6994628906 | FO16: 1.049194336 | FP16: 1.398925781 | FQ16: 1.748657227 | FR16: 0.8483886719 | FS16: -0.05187988281 | FT16: -0.9521484375 | FU16: -0.9521484375 | FV16: -0.8331298828 | FW16: -0.7141113281 | FX16: -0.5950927734 | FY16: -0.4760742188 | FZ16: -0.3570556641 | GA16: -0.2380371094 | GB16: -0.1190185547 | GC16: 0 | GG16: 0.375 | GH16: 0 | GI16: 0.006591796875 | GJ16: 0.01245117188 | GK16: 0.01684570312 | GL16: =1/6*($GG16*GL$7*(1-($GG16^2)-(GL$7^2))) -> 0.01904296875 | GM16: =1/6*($GG16*GM$7*(1-($GG16^2)-(GM$7^2))) -> 0.01831054688 | GN16: 0.01424153646 | GO16: 0.007731119792 | GP16: 0 | HA16: 0 | HB16: -0.001952648163 | HC16: -0.003719329834 | HD16: -0.005114078522 | HE16: -0.005950927734 | HF16: -0.00604391098 | HG16: -0.005207061768 | HH16: -0.003254413605 | HI16: 0 | HJ16: 0 | HK16: -0.003254413605 | HL16: -0.005207061768 | HM16: -0.00604391098 | HN16: -0.005950927734 | HO16: -0.005114078522 | HP16: -0.003719329834 | HQ16: -0.001952648163 | HR16: 0 | HV16: 0 | HW16: 0.004639148712 | HX16: 0.008731842041 | HY16: 0.0117316246 | HZ16: 0.01309204102 | IA16: 0.01226663589 | IB16: 0.009034474691 | IC16: 0.004476706187 | ID16: 0 | IE16: 0 | IF16: -0.003254413605 | IG16: -0.005207061768 | IH16: -0.00604391098 | II16: -0.005950927734 | IJ16: -0.005114078522 | IK16: -0.003719329834 | IL16: -0.001952648163 | IM16: 0 | IP16: 0 | IQ16: 0.4639148712 | IR16: 0.8731842041 | IS16: 1.17316246 | IT16: 1.309204102 | IU16: 1.226663589 | IV16: 0.9034474691 | IW16: 0.4476706187 | IX16: 0 | IY16: 0 | IZ16: -0.3254413605 | JA16: -0.5207061768 | JB16: -0.604391098 | JC16: -0.5950927734 | JD16: -0.5114078522 | JE16: -0.3719329834 | JF16: -0.1952648163 | JG16: 0 | JL16: 0 | JM16: 0.46875 | JN16: 0.9375 | JO16: 1.40625 | JP16: 1.875 | JQ16: 2.34375 | JR16: 2.8125 | JS16: 3.28125 | JT16: 3.75 | KE16: 6.25 | KF16: 5.46875 | KG16: 4.6875 | KH16: 3.90625 | KI16: 3.125 | KJ16: 2.34375 | KK16: 1.5625 | KL16: 0.78125 | KM16: 0 | KX16: 0 | KY16: 0.3497314453 | KZ16: 0.6994628906 | LA16: 1.049194336 | LB16: 1.398925781 | LC16: 1.748657227 | LD16: 2.098388672 | LE16: 2.448120117 | LF16: 2.797851562 | LG16: -0.9521484375 | LH16: -0.8331298828 | LI16: -0.7141113281 | LJ16: -0.5950927734 | LK16: -0.4760742188 | LL16: -0.3570556641 | LM16: -0.2380371094 | LN16: -0.1190185547 | LO16: 0 | LQ16: 6.25 | LR16: 5.349731445 | LS16: 4.449462891 | LT16: 3.549194336 | LU16: 2.648925781 | LV16: 1.748657227 | LW16: 0.8483886719 | LX16: -0.05187988281 | LY16: -0.9521484375 | LZ16: -0.9521484375 | MA16: -0.8331298828 | MB16: -0.7141113281 | MC16: -0.5950927734 | MD16: -0.4760742188 | ME16: -0.3570556641 | MF16: -0.2380371094 | MG16: -0.1190185547 | MH16: 0
C17: =+C16 -> 8 | D17: 0 | E17: 0 | F17: 0 | G17: 0 | H17: 0 | I17: 0 | J17: 0 | K17: 0 | L17: 0 | M17: 0 | N17: 0 | O17: 0 | P17: 0 | Q17: 0 | R17: 0 | S17: 0 | T17: 0 | U17: 0 | V17: 0 | W17: 1 | X17: 0 | Y17: 1 | Z17: 0 | AC17: 0 | BQ17: 0.75 | BR17: 0.75 | BS17: 0.328125 | BT17: =-BS17/(2*(1+Input!$B$1)) -> -0.08203125 | BU17: 0.25 | BV17: 0.16796875 | BW17: 0.75 | BX17: =-(1+1/Input!$B$1)*BT17 -> 0.1640625 | BY17: 0.9140625 | BZ17: -0.75 | CA17: -0.83203125 | CD17: =+BT17/Input!$B$1 -> -0.08203125 | CE17: -0.08203125 | CG17: =+CF17-BT17/Input!$B$1 -> 0.08203125 | CI17: -0.0390625 | CJ17: 0.013671875 | CK17: -0.025390625 | CM17: 0.0546875 | CN17: -0.02734375 | CO17: 0.02734375 | CR17: =-BT17/3*Input!$B$1 -> 0.02734375 | CS17: 0.02734375 | CV17: =+BT17/6*Input!$B$1 -> -0.013671875 | CW17: -0.013671875 | DC17: =+$DI17/$DI$8*DC$8 -> 0 | DD17: 0.03125 | DE17: 0.0625 | DF17: 0.09375 | DG17: 0.125 | DH17: 0.15625 | DI17: =+$BQ17*(1-$BQ17) -> 0.1875 | DJ17: =+$DI17/(8-$DI$8)*(8-DJ$8) -> 0.09375 | DK17: =+$DI17/(8-$DI$8)*(8-DK$8) -> 0 | DX17: 0 | DY17: -0.01025390625 | DZ17: -0.0205078125 | EA17: -0.03076171875 | EB17: -0.041015625 | EC17: -0.05126953125 | ED17: -0.0615234375 | EE17: -0.07177734375 | EF17: -0.08203125 | EG17: -0.08203125 | EH17: -0.07177734375 | EI17: -0.0615234375 | EJ17: -0.05126953125 | EK17: -0.041015625 | EL17: -0.03076171875 | EM17: -0.0205078125 | EN17: -0.01025390625 | EO17: 0 | ER17: 0 | ES17: 0.02099609375 | ET17: 0.0419921875 | EU17: 0.06298828125 | EV17: 0.083984375 | EW17: 0.1049804688 | EX17: 0.1259765625 | EY17: 0.02197265625 | EZ17: -0.08203125 | FA17: -0.08203125 | FB17: -0.07177734375 | FC17: -0.0615234375 | FD17: -0.05126953125 | FE17: -0.041015625 | FF17: -0.03076171875 | FG17: -0.0205078125 | FH17: -0.01025390625 | FI17: 0 | FL17: 0 | FM17: 0.2099609375 | FN17: 0.419921875 | FO17: 0.6298828125 | FP17: 0.83984375 | FQ17: 1.049804688 | FR17: 1.259765625 | FS17: 0.2197265625 | FT17: -0.8203125 | FU17: -0.8203125 | FV17: -0.7177734375 | FW17: -0.615234375 | FX17: -0.5126953125 | FY17: -0.41015625 | FZ17: -0.3076171875 | GA17: -0.205078125 | GB17: -0.1025390625 | GC17: 0 | GG17: 0.25 | GH17: 0 | GI17: 0.004801432292 | GJ17: 0.009114583333 | GK17: 0.01245117188 | GL17: =1/6*($GG17*GL$7*(1-($GG17^2)-(GL$7^2))) -> 0.01432291667 | GM17: =1/6*($GG17*GM$7*(1-($GG17^2)-(GM$7^2))) -> 0.01424153646 | GN17: =1/6*($GG17*GN$7*(1-($GG17^2)-(GN$7^2))) -> 0.01171875 | GO17: 0.006591796875 | GP17: 0 | HA17: 0 | HB17: -0.001682281494 | HC17: -0.003204345703 | HD17: -0.004405975342 | HE17: -0.005126953125 | HF17: -0.005207061768 | HG17: -0.004486083984 | HH17: -0.00280380249 | HI17: 0 | HJ17: 0 | HK17: -0.00280380249 | HL17: -0.004486083984 | HM17: -0.005207061768 | HN17: -0.005126953125 | HO17: -0.004405975342 | HP17: -0.003204345703 | HQ17: -0.001682281494 | HR17: 0 | HV17: 0 | HW17: 0.003119150798 | HX17: 0.00591023763 | HY17: 0.008045196533 | HZ17: 0.009195963542 | IA17: 0.009034474691 | IB17: 0.007232666016 | IC17: 0.003787994385 | ID17: 0 | IE17: 0 | IF17: -0.00280380249 | IG17: -0.004486083984 | IH17: -0.005207061768 | II17: -0.005126953125 | IJ17: -0.004405975342 | IK17: -0.003204345703 | IL17: -0.001682281494 | IM17: 0 | IP17: 0 | IQ17: 0.3119150798 | IR17: 0.591023763 | IS17: 0.8045196533 | IT17: 0.9195963542 | IU17: 0.9034474691 | IV17: 0.7232666016 | IW17: 0.3787994385 | IX17: 0 | IY17: 0 | IZ17: -0.280380249 | JA17: -0.4486083984 | JB17: -0.5207061768 | JC17: -0.5126953125 | JD17: -0.4405975342 | JE17: -0.3204345703 | JF17: -0.1682281494 | JG17: 0 | JL17: 0 | JM17: 0.3125 | JN17: 0.625 | JO17: 0.9375 | JP17: 1.25 | JQ17: 1.5625 | JR17: 1.875 | JS17: 2.1875 | JT17: 2.5 | KE17: 7.5 | KF17: 6.5625 | KG17: 5.625 | KH17: 4.6875 | KI17: 3.75 | KJ17: 2.8125 | KK17: 1.875 | KL17: 0.9375 | KM17: 0 | KX17: 0 | KY17: 0.2099609375 | KZ17: 0.419921875 | LA17: 0.6298828125 | LB17: 0.83984375 | LC17: 1.049804688 | LD17: 1.259765625 | LE17: 1.469726562 | LF17: 1.6796875 | LG17: -0.8203125 | LH17: -0.7177734375 | LI17: -0.615234375 | LJ17: -0.5126953125 | LK17: -0.41015625 | LL17: -0.3076171875 | LM17: -0.205078125 | LN17: -0.1025390625 | LO17: 0 | LQ17: 7.5 | LR17: 6.459960938 | LS17: 5.419921875 | LT17: 4.379882812 | LU17: 3.33984375 | LV17: 2.299804688 | LW17: 1.259765625 | LX17: 0.2197265625 | LY17: -0.8203125 | LZ17: -0.8203125 | MA17: -0.7177734375 | MB17: -0.615234375 | MC17: -0.5126953125 | MD17: -0.41015625 | ME17: -0.3076171875 | MF17: -0.205078125 | MG17: -0.1025390625 | MH17: 0
C18: =+C17+1 -> 9 | D18: 0 | E18: -0.06408691406 | F18: -0.1281738281 | G18: -0.1922607422 | H18: -0.2563476562 | I18: -0.3204345703 | J18: -0.3845214844 | K18: -0.4486083984 | L18: -0.5126953125 | M18: -0.5126953125 | N18: 0.6451416016 | O18: 0.5529785156 | P18: 0.4608154297 | Q18: 0.3686523438 | R18: 0.2764892578 | S18: 0.1843261719 | T18: 0.09216308594 | U18: 0 | V18: -0.05126953125 | W18: 0.9262695312 | X18: -0.05126953125 | Y18: 0.9775390625 | Z18: 0.07373046875 | AC18: -0.07373046875 | AE18: 0 | AF18: =+$X18 -> -0.05126953125 | AG18: -0.05126953125 | AH18: -0.05126953125 | AI18: -0.05126953125 | AJ18: -0.05126953125 | AK18: -0.05126953125 | AL18: -0.05126953125 | AM18: -0.05126953125 | AN18: -0.05126953125 | AO18: -0.05126953125 | AP18: -0.05126953125 | AQ18: -0.05126953125 | AR18: -0.05126953125 | AS18: -0.05126953125 | AT18: -0.05126953125 | AU18: -0.05126953125 | AV18: =+$W18 -> 0.9262695312 | AW18: 0.9262695312 | AX18: =-$Z18 -> -0.07373046875 | AY18: -0.07373046875 | AZ18: -0.07373046875 | BA18: -0.07373046875 | BB18: -0.07373046875 | BC18: -0.07373046875 | BD18: -0.07373046875 | BE18: -0.07373046875 | BF18: -0.07373046875 | BG18: -0.07373046875 | BH18: -0.07373046875 | BI18: -0.07373046875 | BJ18: -0.07373046875 | BK18: -0.07373046875 | BL18: 0 | BQ18: 0.875 | BR18: 0.875 | BS18: 0.205078125 | BT18: =-BS18/(2*(1+Input!$B$1)) -> -0.05126953125 | BU18: =+BU19+1/8 -> 0.125 | BV18: 0.07373046875 | BW18: 0.875 | BX18: =-(1+1/Input!$B$1)*BT18 -> 0.1025390625 | BY18: 0.9775390625 | BZ18: -0.875 | CA18: -0.9262695312 | CD18: =+BT18/Input!$B$1 -> -0.05126953125 | CE18: -0.05126953125 | CG18: =+CF18-BT18/Input!$B$1 -> 0.05126953125 | CI18: -0.0205078125 | CJ18: 0.008544921875 | CK18: -0.01196289062 | CM18: 0.0341796875 | CN18: -0.01708984375 | CO18: 0.01708984375 | CR18: =-BT18/3*Input!$B$1 -> 0.01708984375 | CS18: 0.01708984375 | CV18: =+BT18/6*Input!$B$1 -> -0.008544921875 | CW18: -0.008544921875 | DC18: =+$DJ18/$DJ$8*DC$8 -> 0 | DD18: 0.015625 | DE18: 0.03125 | DF18: 0.046875 | DG18: 0.0625 | DH18: 0.078125 | DI18: 0.09375 | DJ18: =+$BQ18*(1-$BQ18) -> 0.109375 | DK18: =+$DJ18/(8-$DJ$8)*(8-DK$8) -> 0 | DX18: 0 | DY18: -0.006408691406 | DZ18: -0.01281738281 | EA18: -0.01922607422 | EB18: -0.02563476562 | EC18: -0.03204345703 | ED18: -0.03845214844 | EE18: -0.04486083984 | EF18: -0.05126953125 | EG18: -0.05126953125 | EH18: -0.04486083984 | EI18: -0.03845214844 | EJ18: -0.03204345703 | EK18: -0.02563476562 | EL18: -0.01922607422 | EM18: -0.01281738281 | EN18: -0.006408691406 | EO18: 0 | ER18: 0 | ES18: 0.009216308594 | ET18: 0.01843261719 | EU18: 0.02764892578 | EV18: 0.03686523438 | EW18: 0.04608154297 | EX18: 0.05529785156 | EY18: 0.06451416016 | EZ18: -0.05126953125 | FA18: -0.05126953125 | FB18: -0.04486083984 | FC18: -0.03845214844 | FD18: -0.03204345703 | FE18: -0.02563476562 | FF18: -0.01922607422 | FG18: -0.01281738281 | FH18: -0.006408691406 | FI18: 0 | FL18: 0 | FM18: 0.09216308594 | FN18: 0.1843261719 | FO18: 0.2764892578 | FP18: 0.3686523438 | FQ18: 0.4608154297 | FR18: 0.5529785156 | FS18: 0.6451416016 | FT18: -0.5126953125 | FU18: -0.5126953125 | FV18: -0.4486083984 | FW18: -0.3845214844 | FX18: -0.3204345703 | FY18: -0.2563476562 | FZ18: -0.1922607422 | GA18: -0.1281738281 | GB18: -0.06408691406 | GC18: 0 | GG18: 0.125 | GH18: 0 | GI18: 0.002522786458 | GJ18: 0.004801432292 | GK18: 0.006591796875 | GL18: =1/6*($GG18*GL$7*(1-($GG18^2)-(GL$7^2))) -> 0.007649739583 | GM18: =1/6*($GG18*GM$7*(1-($GG18^2)-(GM$7^2))) -> 0.007731119792 | GN18: =1/6*($GG18*GN$7*(1-($GG18^2)-(GN$7^2))) -> 0.006591796875 | GO18: =1/6*($GG18*GO$7*(1-($GG18^2)-(GO$7^2))) -> 0.003987630208 | GP18: 0 | HA18: 0 | HB18: -0.001051425934 | HC18: -0.002002716064 | HD18: -0.002753734589 | HE18: -0.003204345703 | HF18: -0.003254413605 | HG18: -0.00280380249 | HH18: -0.001752376556 | HI18: 0 | HJ18: 0 | HK18: -0.001752376556 | HL18: -0.00280380249 | HM18: -0.003254413605 | HN18: -0.003204345703 | HO18: -0.002753734589 | HP18: -0.002002716064 | HQ18: -0.001051425934 | HR18: 0 | HV18: 0 | HW18: 0.001471360524 | HX18: 0.002798716227 | HY18: 0.003838062286 | HZ18: 0.00444539388 | IA18: 0.004476706187 | IB18: 0.003787994385 | IC18: 0.002235253652 | ID18: 0 | IE18: 0 | IF18: -0.001752376556 | IG18: -0.00280380249 | IH18: -0.003254413605 | II18: -0.003204345703 | IJ18: -0.002753734589 | IK18: -0.002002716064 | IL18: -0.001051425934 | IM18: 0 | IP18: 0 | IQ18: 0.1471360524 | IR18: 0.2798716227 | IS18: 0.3838062286 | IT18: 0.444539388 | IU18: 0.4476706187 | IV18: 0.3787994385 | IW18: 0.2235253652 | IX18: 0 | IY18: 0 | IZ18: -0.1752376556 | JA18: -0.280380249 | JB18: -0.3254413605 | JC18: -0.3204345703 | JD18: -0.2753734589 | JE18: -0.2002716064 | JF18: -0.1051425934 | JG18: 0 | JL18: 0 | JM18: 0.15625 | JN18: 0.3125 | JO18: 0.46875 | JP18: 0.625 | JQ18: 0.78125 | JR18: 0.9375 | JS18: 1.09375 | JT18: 1.25 | KE18: 8.75 | KF18: 7.65625 | KG18: 6.5625 | KH18: 5.46875 | KI18: 4.375 | KJ18: 3.28125 | KK18: 2.1875 | KL18: 1.09375 | KM18: 0 | KX18: 0 | KY18: 0.09216308594 | KZ18: 0.1843261719 | LA18: 0.2764892578 | LB18: 0.3686523438 | LC18: 0.4608154297 | LD18: 0.5529785156 | LE18: 0.6451416016 | LF18: 0.7373046875 | LG18: -0.5126953125 | LH18: -0.4486083984 | LI18: -0.3845214844 | LJ18: -0.3204345703 | LK18: -0.2563476562 | LL18: -0.1922607422 | LM18: -0.1281738281 | LN18: -0.06408691406 | LO18: 0 | LQ18: 8.75 | LR18: 7.592163086 | LS18: 6.434326172 | LT18: 5.276489258 | LU18: 4.118652344 | LV18: 2.96081543 | LW18: 1.802978516 | LX18: 0.6451416016 | LY18: -0.5126953125 | LZ18: -0.5126953125 | MA18: -0.4486083984 | MB18: -0.3845214844 | MC18: -0.3204345703 | MD18: -0.2563476562 | ME18: -0.1922607422 | MF18: -0.1281738281 | MG18: -0.06408691406 | MH18: 0
C19: 10 | D19: 0 | E19: -0.1025390625 | F19: -0.205078125 | G19: -0.3076171875 | H19: -0.41015625 | I19: -0.5126953125 | J19: -0.615234375 | K19: -0.7177734375 | L19: -0.8203125 | M19: -0.8203125 | N19: 0.2197265625 | O19: 1.259765625 | P19: 1.049804688 | Q19: 0.83984375 | R19: 0.6298828125 | S19: 0.419921875 | T19: 0.2099609375 | U19: 0 | V19: -0.08203125 | W19: 0.83203125 | X19: -0.08203125 | Y19: 0.9140625 | Z19: 0.16796875 | AC19: -0.16796875 | AE19: 0 | AF19: -0.08203125 | AG19: -0.08203125 | AH19: -0.08203125 | AI19: -0.08203125 | AJ19: -0.08203125 | AK19: -0.08203125 | AL19: -0.08203125 | AM19: -0.08203125 | AN19: -0.08203125 | AO19: -0.08203125 | AP19: -0.08203125 | AQ19: -0.08203125 | AR19: -0.08203125 | AS19: -0.08203125 | AT19: -0.08203125 | AU19: -0.08203125 | AV19: 0.83203125 | AW19: 0.83203125 | AX19: =+$W19 -> 0.83203125 | AY19: 0.83203125 | AZ19: =-$Z19 -> -0.16796875 | BA19: -0.16796875 | BB19: -0.16796875 | BC19: -0.16796875 | BD19: -0.16796875 | BE19: -0.16796875 | BF19: -0.16796875 | BG19: -0.16796875 | BH19: -0.16796875 | BI19: -0.16796875 | BJ19: -0.16796875 | BK19: -0.16796875 | BL19: 0 | BQ19: 1 | BR19: 1 | BS19: 0 | BT19: =-BS19/(2*(1+Input!$B$1)) -> 0 | BU19: 0 | BV19: 0 | BW19: 1 | BX19: =-(1+1/Input!$B$1)*BT19 -> 0 | BY19: 1 | BZ19: -1 | CA19: -1 | CD19: =+BT19/Input!$B$1 -> 0 | CE19: 0 | CG19: =+CF19-BT19/Input!$B$1 -> 0 | CI19: 0 | CJ19: 0 | CK19: 0 | CM19: 0 | CN19: 0 | CO19: 0 | CR19: =-BT19/3*Input!$B$1 -> 0 | CS19: 0 | CV19: =+BT19/6*Input!$B$1 -> 0 | CW19: 0 | DC19: =+$DK19/$DK$8*DC$8 -> 0 | DD19: 0 | DE19: 0 | DF19: 0 | DG19: 0 | DH19: 0 | DI19: 0 | DJ19: 0 | DK19: =+$BQ19*(1-$BQ19) -> 0 | DX19: 0 | DY19: 0 | DZ19: 0 | EA19: 0 | EB19: 0 | EC19: 0 | ED19: 0 | EE19: 0 | EF19: 0 | EG19: 0 | EH19: 0 | EI19: 0 | EJ19: 0 | EK19: 0 | EL19: 0 | EM19: 0 | EN19: 0 | EO19: 0 | ER19: 0 | ES19: 0 | ET19: 0 | EU19: 0 | EV19: 0 | EW19: 0 | EX19: 0 | EY19: 0 | EZ19: 0 | FA19: 0 | FB19: 0 | FC19: 0 | FD19: 0 | FE19: 0 | FF19: 0 | FG19: 0 | FH19: 0 | FI19: 0 | FL19: 0 | FM19: 0 | FN19: 0 | FO19: 0 | FP19: 0 | FQ19: 0 | FR19: 0 | FS19: 0 | FT19: 0 | FU19: 0 | FV19: 0 | FW19: 0 | FX19: 0 | FY19: 0 | FZ19: 0 | GA19: 0 | GB19: 0 | GC19: 0 | GG19: 0 | GH19: 0 | GI19: 0 | GJ19: 0 | GK19: 0 | GL19: =1/6*($GG19*GL$7*(1-($GG19^2)-(GL$7^2))) -> 0 | GM19: =1/6*($GG19*GM$7*(1-($GG19^2)-(GM$7^2))) -> 0 | GN19: =1/6*($GG19*GN$7*(1-($GG19^2)-(GN$7^2))) -> 0 | GO19: =1/6*($GG19*GO$7*(1-($GG19^2)-(GO$7^2))) -> 0 | GP19: =1/6*($GG19*GP$7*(1-($GG19^2)-(GP$7^2))) -> 0 | HA19: 0 | HB19: 0 | HC19: 0 | HD19: 0 | HE19: 0 | HF19: 0 | HG19: 0 | HH19: 0 | HI19: 0 | HJ19: 0 | HK19: 0 | HL19: 0 | HM19: 0 | HN19: 0 | HO19: 0 | HP19: 0 | HQ19: 0 | HR19: 0 | HV19: 0 | HW19: 0 | HX19: 0 | HY19: 0 | HZ19: 0 | IA19: 0 | IB19: 0 | IC19: 0 | ID19: 0 | IE19: 0 | IF19: 0 | IG19: 0 | IH19: 0 | II19: 0 | IJ19: 0 | IK19: 0 | IL19: 0 | IM19: 0 | IP19: 0 | IQ19: 0 | IR19: 0 | IS19: 0 | IT19: 0 | IU19: 0 | IV19: 0 | IW19: 0 | IX19: 0 | IY19: 0 | IZ19: 0 | JA19: 0 | JB19: 0 | JC19: 0 | JD19: 0 | JE19: 0 | JF19: 0 | JG19: 0 | JL19: 0 | JM19: 0 | JN19: 0 | JO19: 0 | JP19: 0 | JQ19: 0 | JR19: 0 | JS19: 0 | JT19: 0 | KE19: 10 | KF19: 8.75 | KG19: 7.5 | KH19: 6.25 | KI19: 5 | KJ19: 3.75 | KK19: 2.5 | KL19: 1.25 | KM19: 0 | KX19: 0 | KY19: 0 | KZ19: 0 | LA19: 0 | LB19: 0 | LC19: 0 | LD19: 0 | LE19: 0 | LF19: 0 | LG19: 0 | LH19: 0 | LI19: 0 | LJ19: 0 | LK19: 0 | LL19: 0 | LM19: 0 | LN19: 0 | LO19: 0 | LQ19: 10 | LR19: 8.75 | LS19: 7.5 | LT19: 6.25 | LU19: 5 | LV19: 3.75 | LW19: 2.5 | LX19: 1.25 | LY19: 0 | LZ19: 0 | MA19: 0 | MB19: 0 | MC19: 0 | MD19: 0 | ME19: 0 | MF19: 0 | MG19: 0 | MH19: 0
C20: 11 | D20: 0 | E20: -0.1190185547 | F20: -0.2380371094 | G20: -0.3570556641 | H20: -0.4760742188 | I20: -0.5950927734 | J20: -0.7141113281 | K20: -0.8331298828 | L20: -0.9521484375 | M20: -0.9521484375 | N20: -0.05187988281 | O20: 0.8483886719 | P20: 1.748657227 | Q20: 1.398925781 | R20: 1.049194336 | S20: 0.6994628906 | T20: 0.3497314453 | U20: 0 | V20: -0.09521484375 | W20: 0.7202148438 | X20: -0.09521484375 | Y20: 0.8154296875 | Z20: 0.2797851562 | AC20: -0.2797851562 | AE20: 0 | AF20: -0.09521484375 | AG20: -0.09521484375 | AH20: -0.09521484375 | AI20: -0.09521484375 | AJ20: -0.09521484375 | AK20: -0.09521484375 | AL20: -0.09521484375 | AM20: -0.09521484375 | AN20: -0.09521484375 | AO20: -0.09521484375 | AP20: -0.09521484375 | AQ20: -0.09521484375 | AR20: -0.09521484375 | AS20: -0.09521484375 | AT20: -0.09521484375 | AU20: -0.09521484375 | AV20: 0.7202148438 | AW20: 0.7202148438 | AX20: 0.7202148438 | AY20: 0.7202148438 | AZ20: =+$W20 -> 0.7202148438 | BA20: 0.7202148438 | BB20: =-$Z20 -> -0.2797851562 | BC20: -0.2797851562 | BD20: -0.2797851562 | BE20: -0.2797851562 | BF20: -0.2797851562 | BG20: -0.2797851562 | BH20: -0.2797851562 | BI20: -0.2797851562 | BJ20: -0.2797851562 | BK20: -0.2797851562 | BL20: 0 | BP20: 2 | BQ20: 0 | BR20: =1+BQ20 -> 1 | BS20: =2*BQ20-3*BQ20^2+BQ20^3 -> 0 | BT20: =-(Input!$B$1^2)*BS20/(2*(1+Input!$B$1)) -> 0 | BV20: 0 | BW20: 1 | BX20: =-(1+1/Input!$B$1)*BT20 -> 0 | BY20: 1 | CA20: 0 | CC20: =+BQ20 -> 0 | CD20: =+BT20/Input!$B$1 -> 0 | CE20: 0 | CF20: =+BW20 -> 1 | CG20: =+CF20-BT20/Input!$B$1 -> 1 | CJ20: 0 | CK20: 0 | CN20: 0 | CO20: 0 | CQ20: =+CI11*Input!$B$1^2 -> 0 | CR20: =-BT20/3*Input!$B$1 -> 0 | CS20: 0 | CU20: =+CM11*Input!$B$1^2 -> 0 | CV20: =+BT20/6*Input!$B$1 -> 0 | CW20: 0 | DL20: =+DC11*Input!$B$1 -> 0 | DM20: =+DD11*Input!$B$1 -> 0 | DN20: =+DE11*Input!$B$1 -> 0 | DO20: =+DF11*Input!$B$1 -> 0 | DP20: =+DG11*Input!$B$1 -> 0 | DQ20: =+DH11*Input!$B$1 -> 0 | DR20: =+DI11*Input!$B$1 -> 0 | DS20: =+DJ11*Input!$B$1 -> 0 | DT20: =+DK11*Input!$B$1 -> 0 | DX20: 0 | DY20: 0 | DZ20: 0 | EA20: 0 | EB20: 0 | EC20: 0 | ED20: 0 | EE20: 0 | EF20: 0 | EG20: 0 | EH20: 0 | EI20: 0 | EJ20: 0 | EK20: 0 | EL20: 0 | EM20: 0 | EN20: 0 | EO20: 0 | ER20: 0 | ES20: 0 | ET20: 0 | EU20: 0 | EV20: 0 | EW20: 0 | EX20: 0 | EY20: 0 | EZ20: 0 | FA20: 0 | FB20: 0 | FC20: 0 | FD20: 0 | FE20: 0 | FF20: 0 | FG20: 0 | FH20: 0 | FI20: 0 | FL20: 0 | FM20: 0 | FN20: 0 | FO20: 0 | FP20: 0 | FQ20: 0 | FR20: 0 | FS20: 0 | FT20: 0 | FU20: 0 | FV20: 0 | FW20: 0 | FX20: 0 | FY20: 0 | FZ20: 0 | GA20: 0 | GB20: 0 | GC20: 0 | GG20: 1 | GQ20: =+GH11*(Input!$B$1^3) -> 0 | GR20: =+GI11*(Input!$B$1^3) -> 0 | GS20: =+GJ11*(Input!$B$1^3) -> 0 | GT20: =+GK11*(Input!$B$1^3) -> 0 | GU20: =+GL11*(Input!$B$1^3) -> 0 | GV20: =+GM11*(Input!$B$1^3) -> 0 | GW20: =+GN11*(Input!$B$1^3) -> 0 | GX20: =+GO11*(Input!$B$1^3) -> 0 | GY20: =+GP11*(Input!$B$1^3) -> 0 | HA20: 0 | HB20: 0 | HC20: 0 | HD20: 0 | HE20: 0 | HF20: 0 | HG20: 0 | HH20: 0 | HI20: 0 | HJ20: 0 | HK20: 0 | HL20: 0 | HM20: 0 | HN20: 0 | HO20: 0 | HP20: 0 | HQ20: 0 | HR20: 0 | HV20: 0 | HW20: 0 | HX20: 0 | HY20: 0 | HZ20: 0 | IA20: 0 | IB20: 0 | IC20: 0 | ID20: 0 | IE20: 0 | IF20: 0 | IG20: 0 | IH20: 0 | II20: 0 | IJ20: 0 | IK20: 0 | IL20: 0 | IM20: 0 | IP20: 0 | IQ20: 0 | IR20: 0 | IS20: 0 | IT20: 0 | IU20: 0 | IV20: 0 | IW20: 0 | IX20: 0 | IY20: 0 | IZ20: 0 | JA20: 0 | JB20: 0 | JC20: 0 | JD20: 0 | JE20: 0 | JF20: 0 | JG20: 0 | JU20: =+JL11*Input!$B$1 -> 0 | JV20: =+JM11*Input!$B$1 -> 1.25 | JW20: =+JN11*Input!$B$1 -> 2.5 | JX20: =+JO11*Input!$B$1 -> 3.75 | JY20: =+JP11*Input!$B$1 -> 5 | JZ20: =+JQ11*Input!$B$1 -> 6.25 | KA20: =+JR11*Input!$B$1 -> 7.5 | KB20: =+JS11*Input!$B$1 -> 8.75 | KC20: =+JT11*Input!$B$1 -> 10 | KN20: =+KE11*Input!$B$1 -> 0 | KO20: =+KF11*Input!$B$1 -> 0 | KP20: =+KG11*Input!$B$1 -> 0 | KQ20: =+KH11*Input!$B$1 -> 0 | KR20: =+KI11*Input!$B$1 -> 0 | KS20: =+KJ11*Input!$B$1 -> 0 | KT20: =+KK11*Input!$B$1 -> 0 | KU20: =+KL11*Input!$B$1 -> 0 | KV20: =+KM11*Input!$B$1 -> 0 | KX20: 0 | KY20: 0 | KZ20: 0 | LA20: 0 | LB20: 0 | LC20: 0 | LD20: 0 | LE20: 0 | LF20: 0 | LG20: 0 | LH20: 1.25 | LI20: 2.5 | LJ20: 3.75 | LK20: 5 | LL20: 6.25 | LM20: 7.5 | LN20: 8.75 | LO20: 10 | LQ20: 0 | LR20: 0 | LS20: 0 | LT20: 0 | LU20: 0 | LV20: 0 | LW20: 0 | LX20: 0 | LY20: 0 | LZ20: 0 | MA20: 0 | MB20: 0 | MC20: 0 | MD20: 0 | ME20: 0 | MF20: 0 | MG20: 0 | MH20: 0
C21: 12 | D21: 0 | E21: -0.1171875 | F21: -0.234375 | G21: -0.3515625 | H21: -0.46875 | I21: -0.5859375 | J21: -0.703125 | K21: -0.8203125 | L21: -0.9375 | M21: -0.9375 | N21: -0.1953125 | O21: 0.546875 | P21: 1.2890625 | Q21: 2.03125 | R21: 1.5234375 | S21: 1.015625 | T21: 0.5078125 | U21: 0 | V21: -0.09375 | W21: 0.59375 | X21: -0.09375 | Y21: 0.6875 | Z21: 0.40625 | AC21: -0.40625 | AE21: 0 | AF21: -0.09375 | AG21: -0.09375 | AH21: -0.09375 | AI21: -0.09375 | AJ21: -0.09375 | AK21: -0.09375 | AL21: -0.09375 | AM21: -0.09375 | AN21: -0.09375 | AO21: -0.09375 | AP21: -0.09375 | AQ21: -0.09375 | AR21: -0.09375 | AS21: -0.09375 | AT21: -0.09375 | AU21: -0.09375 | AV21: 0.59375 | AW21: 0.59375 | AX21: 0.59375 | AY21: 0.59375 | AZ21: 0.59375 | BA21: 0.59375 | BB21: =+$W21 -> 0.59375 | BC21: 0.59375 | BD21: =-$Z21 -> -0.40625 | BE21: -0.40625 | BF21: -0.40625 | BG21: -0.40625 | BH21: -0.40625 | BI21: -0.40625 | BJ21: -0.40625 | BK21: -0.40625 | BL21: 0 | BQ21: =+BQ20+1/8 -> 0.125 | BR21: =1+BQ21 -> 1.125 | BS21: =2*BQ21-3*BQ21^2+BQ21^3 -> 0.205078125 | BT21: =-(Input!$B$1^2)*BS21/(2*(1+Input!$B$1)) -> -0.05126953125 | BV21: -0.05126953125 | BW21: =+BW20-1/8 -> 0.875 | BX21: =-(1+1/Input!$B$1)*BT21 -> 0.1025390625 | BY21: 0.9775390625 | CA21: -0.05126953125 | CC21: =+BQ21 -> 0.125 | CD21: =+BT21/Input!$B$1 -> -0.05126953125 | CE21: 0.07373046875 | CF21: =+BW21 -> 0.875 | CG21: =+CF21-BT21/Input!$B$1 -> 0.9262695312 | CJ21: 0.008544921875 | CK21: 0.008544921875 | CN21: -0.01708984375 | CO21: -0.01708984375 | CQ21: =+CI12*Input!$B$1^2 -> -0.0341796875 | CR21: =-BT21/3*Input!$B$1 -> 0.01708984375 | CS21: -0.01708984375 | CU21: =+CM12*Input!$B$1^2 -> 0.0205078125 | CV21: =+BT21/6*Input!$B$1 -> -0.008544921875 | CW21: 0.01196289062 | DL21: =+DC12*Input!$B$1 -> 0 | DM21: =+DD12*Input!$B$1 -> 0.109375 | DN21: =+DE12*Input!$B$1 -> 0.09375 | DO21: =+DF12*Input!$B$1 -> 0.078125 | DP21: =+DG12*Input!$B$1 -> 0.0625 | DQ21: =+DH12*Input!$B$1 -> 0.046875 | DR21: =+DI12*Input!$B$1 -> 0.03125 | DS21: =+DJ12*Input!$B$1 -> 0.015625 | DT21: =+DK12*Input!$B$1 -> 0 | DX21: =+DX$8*$BT21 -> 0 | DY21: -0.006408691406 | DZ21: -0.01281738281 | EA21: -0.01922607422 | EB21: -0.02563476562 | EC21: -0.03204345703 | ED21: -0.03845214844 | EE21: -0.04486083984 | EF21: -0.05126953125 | EG21: -0.05126953125 | EH21: =+EH$8*$BT21 -> -0.04486083984 | EI21: -0.03845214844 | EJ21: -0.03204345703 | EK21: -0.02563476562 | EL21: -0.01922607422 | EM21: -0.01281738281 | EN21: -0.006408691406 | EO21: 0 | ER21: 0 | ES21: -0.006408691406 | ET21: -0.01281738281 | EU21: -0.01922607422 | EV21: -0.02563476562 | EW21: -0.03204345703 | EX21: -0.03845214844 | EY21: -0.04486083984 | EZ21: -0.05126953125 | FA21: -0.05126953125 | FB21: 0.06451416016 | FC21: 0.05529785156 | FD21: 0.04608154297 | FE21: 0.03686523438 | FF21: 0.02764892578 | FG21: 0.01843261719 | FH21: 0.009216308594 | FI21: 0 | FL21: 0 | FM21: -0.06408691406 | FN21: -0.1281738281 | FO21: -0.1922607422 | FP21: -0.2563476562 | FQ21: -0.3204345703 | FR21: -0.3845214844 | FS21: -0.4486083984 | FT21: -0.5126953125 | FU21: -0.5126953125 | FV21: 0.6451416016 | FW21: 0.5529785156 | FX21: 0.4608154297 | FY21: 0.3686523438 | FZ21: 0.2764892578 | GA21: 0.1843261719 | GB21: 0.09216308594 | GC21: 0 | GG21: 0.875 | GQ21: =+GH12*(Input!$B$1^3) -> 0 | GR21: =+GI12*(Input!$B$1^3) -> 0.003987630208 | GS21: =+GJ12*(Input!$B$1^3) -> 0.006591796875 | GT21: =+GK12*(Input!$B$1^3) -> 0.007731119792 | GU21: =+GL12*(Input!$B$1^3) -> 0.007649739583 | GV21: =+GM12*(Input!$B$1^3) -> 0.006591796875 | GW21: =+GN12*(Input!$B$1^3) -> 0.004801432292 | GX21: =+GO12*(Input!$B$1^3) -> 0.002522786458 | GY21: =+GP12*(Input!$B$1^3) -> 0 | HA21: =+HA$9*$BT21 -> 0 | HB21: -0.001051425934 | HC21: -0.002002716064 | HD21: -0.002753734589 | HE21: -0.003204345703 | HF21: -0.003254413605 | HG21: -0.00280380249 | HH21: -0.001752376556 | HI21: 0 | HJ21: 0 | HK21: =+HK$9*$BT21 -> -0.001752376556 | HL21: -0.00280380249 | HM21: -0.003254413605 | HN21: -0.003204345703 | HO21: -0.002753734589 | HP21: -0.002002716064 | HQ21: -0.001051425934 | HR21: 0 | HV21: 0 | HW21: -0.001051425934 | HX21: -0.002002716064 | HY21: -0.002753734589 | HZ21: -0.003204345703 | IA21: -0.003254413605 | IB21: -0.00280380249 | IC21: -0.001752376556 | ID21: 0 | IE21: 0 | IF21: 0.002235253652 | IG21: 0.003787994385 | IH21: 0.004476706187 | II21: 0.00444539388 | IJ21: 0.003838062286 | IK21: 0.002798716227 | IL21: 0.001471360524 | IM21: 0 | IP21: 0 | IQ21: -0.1051425934 | IR21: -0.2002716064 | IS21: -0.2753734589 | IT21: -0.3204345703 | IU21: -0.3254413605 | IV21: -0.280380249 | IW21: -0.1752376556 | IX21: 0 | IY21: 0 | IZ21: 0.2235253652 | JA21: 0.3787994385 | JB21: 0.4476706187 | JC21: 0.444539388 | JD21: 0.3838062286 | JE21: 0.2798716227 | JF21: 0.1471360524 | JG21: 0 | JU21: =+JL12*Input!$B$1 -> 0 | JV21: =+JM12*Input!$B$1 -> 1.09375 | JW21: =+JN12*Input!$B$1 -> 2.1875 | JX21: =+JO12*Input!$B$1 -> 3.28125 | JY21: =+JP12*Input!$B$1 -> 4.375 | JZ21: =+JQ12*Input!$B$1 -> 5.46875 | KA21: =+JR12*Input!$B$1 -> 6.5625 | KB21: =+JS12*Input!$B$1 -> 7.65625 | KC21: =+JT12*Input!$B$1 -> 8.75 | KN21: =+KE12*Input!$B$1 -> 1.25 | KO21: =+KF12*Input!$B$1 -> 1.09375 | KP21: =+KG12*Input!$B$1 -> 0.9375 | KQ21: =+KH12*Input!$B$1 -> 0.78125 | KR21: =+KI12*Input!$B$1 -> 0.625 | KS21: =+KJ12*Input!$B$1 -> 0.46875 | KT21: =+KK12*Input!$B$1 -> 0.3125 | KU21: =+KL12*Input!$B$1 -> 0.15625 | KV21: =+KM12*Input!$B$1 -> 0 | KX21: 0 | KY21: -0.06408691406 | KZ21: -0.1281738281 | LA21: -0.1922607422 | LB21: -0.2563476562 | LC21: -0.3204345703 | LD21: -0.3845214844 | LE21: -0.4486083984 | LF21: -0.5126953125 | LG21: -0.5126953125 | LH21: 0.6451416016 | LI21: 1.802978516 | LJ21: 2.96081543 | LK21: 4.118652344 | LL21: 5.276489258 | LM21: 6.434326172 | LN21: 7.592163086 | LO21: 8.75 | LQ21: 0 | LR21: -0.06408691406 | LS21: -0.1281738281 | LT21: -0.1922607422 | LU21: -0.2563476562 | LV21: -0.3204345703 | LW21: -0.3845214844 | LX21: -0.4486083984 | LY21: -0.5126953125 | LZ21: 0.7373046875 | MA21: 0.6451416016 | MB21: 0.5529785156 | MC21: 0.4608154297 | MD21: 0.3686523438 | ME21: 0.2764892578 | MF21: 0.1843261719 | MG21: 0.09216308594 | MH21: 0
C22: 13 | D22: 0 | E22: -0.1007080078 | F22: -0.2014160156 | G22: -0.3021240234 | H22: -0.4028320312 | I22: -0.5035400391 | J22: -0.6042480469 | K22: -0.7049560547 | L22: -0.8056640625 | M22: -0.8056640625 | N22: -0.2362060547 | O22: 0.3332519531 | P22: 0.9027099609 | Q22: 1.472167969 | R22: 2.041625977 | S22: 1.361083984 | T22: 0.6805419922 | U22: 0 | V22: -0.08056640625 | W22: 0.4555664062 | X22: -0.08056640625 | Y22: 0.5361328125 | Z22: 0.5444335938 | AC22: -0.5444335938 | AE22: 0 | AF22: -0.08056640625 | AG22: -0.08056640625 | AH22: -0.08056640625 | AI22: -0.08056640625 | AJ22: -0.08056640625 | AK22: -0.08056640625 | AL22: -0.08056640625 | AM22: -0.08056640625 | AN22: -0.08056640625 | AO22: -0.08056640625 | AP22: -0.08056640625 | AQ22: -0.08056640625 | AR22: -0.08056640625 | AS22: -0.08056640625 | AT22: -0.08056640625 | AU22: -0.08056640625 | AV22: 0.4555664062 | AW22: 0.4555664062 | AX22: 0.4555664062 | AY22: 0.4555664062 | AZ22: 0.4555664062 | BA22: 0.4555664062 | BB22: 0.4555664062 | BC22: 0.4555664062 | BD22: =+$W22 -> 0.4555664062 | BE22: 0.4555664062 | BF22: =-$Z22 -> -0.5444335938 | BG22: -0.5444335938 | BH22: -0.5444335938 | BI22: -0.5444335938 | BJ22: -0.5444335938 | BK22: -0.5444335938 | BL22: 0 | BQ22: =+BQ21+1/8 -> 0.25 | BR22: 1.25 | BS22: 0.328125 | BT22: =-(Input!$B$1^2)*BS22/(2*(1+Input!$B$1)) -> -0.08203125 | BV22: -0.08203125 | BW22: =+BW21-1/8 -> 0.75 | BX22: =-(1+1/Input!$B$1)*BT22 -> 0.1640625 | BY22: 0.9140625 | CA22: -0.08203125 | CC22: 0.25 | CD22: =+BT22/Input!$B$1 -> -0.08203125 | CE22: 0.16796875 | CF22: 0.75 | CG22: =+CF22-BT22/Input!$B$1 -> 0.83203125 | CJ22: 0.013671875 | CK22: 0.013671875 | CN22: -0.02734375 | CO22: -0.02734375 | CQ22: =+CI13*Input!$B$1^2 -> -0.0546875 | CR22: =-BT22/3*Input!$B$1 -> 0.02734375 | CS22: -0.02734375 | CU22: =+CM13*Input!$B$1^2 -> 0.0390625 | CV22: =+BT22/6*Input!$B$1 -> -0.013671875 | CW22: 0.025390625 | DL22: =+DC13*Input!$B$1 -> 0 | DM22: =+DD13*Input!$B$1 -> 0.09375 | DN22: =+DE13*Input!$B$1 -> 0.1875 | DO22: =+DF13*Input!$B$1 -> 0.15625 | DP22: =+DG13*Input!$B$1 -> 0.125 | DQ22: =+DH13*Input!$B$1 -> 0.09375 | DR22: =+DI13*Input!$B$1 -> 0.0625 | DS22: =+DJ13*Input!$B$1 -> 0.03125 | DT22: =+DK13*Input!$B$1 -> 0 | DX22: 0 | DY22: -0.01025390625 | DZ22: -0.0205078125 | EA22: -0.03076171875 | EB22: -0.041015625 | EC22: -0.05126953125 | ED22: -0.0615234375 | EE22: -0.07177734375 | EF22: -0.08203125 | EG22: -0.08203125 | EH22: -0.07177734375 | EI22: -0.0615234375 | EJ22: -0.05126953125 | EK22: -0.041015625 | EL22: -0.03076171875 | EM22: -0.0205078125 | EN22: -0.01025390625 | EO22: 0 | ER22: 0 | ES22: -0.01025390625 | ET22: -0.0205078125 | EU22: -0.03076171875 | EV22: -0.041015625 | EW22: -0.05126953125 | EX22: -0.0615234375 | EY22: -0.07177734375 | EZ22: -0.08203125 | FA22: -0.08203125 | FB22: 0.02197265625 | FC22: 0.1259765625 | FD22: 0.1049804688 | FE22: 0.083984375 | FF22: 0.06298828125 | FG22: 0.0419921875 | FH22: 0.02099609375 | FI22: 0 | FL22: 0 | FM22: -0.1025390625 | FN22: -0.205078125 | FO22: -0.3076171875 | FP22: -0.41015625 | FQ22: -0.5126953125 | FR22: -0.615234375 | FS22: -0.7177734375 | FT22: -0.8203125 | FU22: -0.8203125 | FV22: 0.2197265625 | FW22: 1.259765625 | FX22: 1.049804688 | FY22: 0.83984375 | FZ22: 0.6298828125 | GA22: 0.419921875 | GB22: 0.2099609375 | GC22: 0 | GG22: 0.75 | GQ22: =+GH13*(Input!$B$1^3) -> 0 | GR22: =+GI13*(Input!$B$1^3) -> 0.006591796875 | GS22: =+GJ13*(Input!$B$1^3) -> 0.01171875 | GT22: =+GK13*(Input!$B$1^3) -> 0.01424153646 | GU22: =+GL13*(Input!$B$1^3) -> 0.01432291667 | GV22: =+GM13*(Input!$B$1^3) -> 0.01245117188 | GW22: =+GN13*(Input!$B$1^3) -> 0.009114583333 | GX22: =+GO13*(Input!$B$1^3) -> 0.004801432292 | GY22: =+GP13*(Input!$B$1^3) -> 0 | HA22: 0 | HB22: -0.001682281494 | HC22: -0.003204345703 | HD22: -0.004405975342 | HE22: -0.005126953125 | HF22: -0.005207061768 | HG22: -0.004486083984 | HH22: -0.00280380249 | HI22: 0 | HJ22: 0 | HK22: -0.00280380249 | HL22: -0.004486083984 | HM22: -0.005207061768 | HN22: -0.005126953125 | HO22: -0.004405975342 | HP22: -0.003204345703 | HQ22: -0.001682281494 | HR22: 0 | HV22: 0 | HW22: -0.001682281494 | HX22: -0.003204345703 | HY22: -0.004405975342 | HZ22: -0.005126953125 | IA22: -0.005207061768 | IB22: -0.004486083984 | IC22: -0.00280380249 | ID22: 0 | IE22: 0 | IF22: 0.003787994385 | IG22: 0.007232666016 | IH22: 0.009034474691 | II22: 0.009195963542 | IJ22: 0.008045196533 | IK22: 0.00591023763 | IL22: 0.003119150798 | IM22: 0 | IP22: 0 | IQ22: -0.1682281494 | IR22: -0.3204345703 | IS22: -0.4405975342 | IT22: -0.5126953125 | IU22: -0.5207061768 | IV22: -0.4486083984 | IW22: -0.280380249 | IX22: 0 | IY22: 0 | IZ22: 0.3787994385 | JA22: 0.7232666016 | JB22: 0.9034474691 | JC22: 0.9195963542 | JD22: 0.8045196533 | JE22: 0.591023763 | JF22: 0.3119150798 | JG22: 0 | JU22: =+JL13*Input!$B$1 -> 0 | JV22: =+JM13*Input!$B$1 -> 0.9375 | JW22: =+JN13*Input!$B$1 -> 1.875 | JX22: =+JO13*Input!$B$1 -> 2.8125 | JY22: =+JP13*Input!$B$1 -> 3.75 | JZ22: =+JQ13*Input!$B$1 -> 4.6875 | KA22: =+JR13*Input!$B$1 -> 5.625 | KB22: =+JS13*Input!$B$1 -> 6.5625 | KC22: =+JT13*Input!$B$1 -> 7.5 | KN22: =+KE13*Input!$B$1 -> 2.5 | KO22: =+KF13*Input!$B$1 -> 2.1875 | KP22: =+KG13*Input!$B$1 -> 1.875 | KQ22: =+KH13*Input!$B$1 -> 1.5625 | KR22: =+KI13*Input!$B$1 -> 1.25 | KS22: =+KJ13*Input!$B$1 -> 0.9375 | KT22: =+KK13*Input!$B$1 -> 0.625 | KU22: =+KL13*Input!$B$1 -> 0.3125 | KV22: =+KM13*Input!$B$1 -> 0 | KX22: 0 | KY22: -0.1025390625 | KZ22: -0.205078125 | LA22: -0.3076171875 | LB22: -0.41015625 | LC22: -0.5126953125 | LD22: -0.615234375 | LE22: -0.7177734375 | LF22: -0.8203125 | LG22: -0.8203125 | LH22: 0.2197265625 | LI22: 1.259765625 | LJ22: 2.299804688 | LK22: 3.33984375 | LL22: 4.379882812 | LM22: 5.419921875 | LN22: 6.459960938 | LO22: 7.5 | LQ22: 0 | LR22: -0.1025390625 | LS22: -0.205078125 | LT22: -0.3076171875 | LU22: -0.41015625 | LV22: -0.5126953125 | LW22: -0.615234375 | LX22: -0.7177734375 | LY22: -0.8203125 | LZ22: 1.6796875 | MA22: 1.469726562 | MB22: 1.259765625 | MC22: 1.049804688 | MD22: 0.83984375 | ME22: 0.6298828125 | MF22: 0.419921875 | MG22: 0.2099609375 | MH22: 0
C23: 14 | D23: 0 | E23: -0.0732421875 | F23: -0.146484375 | G23: -0.2197265625 | H23: -0.29296875 | I23: -0.3662109375 | J23: -0.439453125 | K23: -0.5126953125 | L23: -0.5859375 | M23: -0.5859375 | N23: -0.2001953125 | O23: 0.185546875 | P23: 0.5712890625 | Q23: 0.95703125 | R23: 1.342773438 | S23: 1.728515625 | T23: 0.8642578125 | U23: 0 | V23: -0.05859375 | W23: 0.30859375 | X23: -0.05859375 | Y23: 0.3671875 | Z23: 0.69140625 | AC23: -0.69140625 | AE23: 0 | AF23: -0.05859375 | AG23: -0.05859375 | AH23: -0.05859375 | AI23: -0.05859375 | AJ23: -0.05859375 | AK23: -0.05859375 | AL23: -0.05859375 | AM23: -0.05859375 | AN23: -0.05859375 | AO23: -0.05859375 | AP23: -0.05859375 | AQ23: -0.05859375 | AR23: -0.05859375 | AS23: -0.05859375 | AT23: -0.05859375 | AU23: -0.05859375 | AV23: 0.30859375 | AW23: 0.30859375 | AX23: 0.30859375 | AY23: 0.30859375 | AZ23: 0.30859375 | BA23: 0.30859375 | BB23: 0.30859375 | BC23: 0.30859375 | BD23: 0.30859375 | BE23: 0.30859375 | BF23: =+$W23 -> 0.30859375 | BG23: =+$W23 -> 0.30859375 | BH23: =-$Z23 -> -0.69140625 | BI23: =-$Z23 -> -0.69140625 | BJ23: =-$Z23 -> -0.69140625 | BK23: =-$Z23 -> -0.69140625 | BL23: 0 | BQ23: 0.375 | BR23: 1.375 | BS23: 0.380859375 | BT23: =-(Input!$B$1^2)*BS23/(2*(1+Input!$B$1)) -> -0.09521484375 | BV23: -0.09521484375 | BW23: 0.625 | BX23: =-(1+1/Input!$B$1)*BT23 -> 0.1904296875 | BY23: 0.8154296875 | CA23: -0.09521484375 | CC23: 0.375 | CD23: =+BT23/Input!$B$1 -> -0.09521484375 | CE23: 0.2797851562 | CF23: 0.625 | CG23: =+CF23-BT23/Input!$B$1 -> 0.7202148438 | CJ23: 0.01586914062 | CK23: 0.01586914062 | CN23: -0.03173828125 | CO23: -0.03173828125 | CQ23: =+CI14*Input!$B$1^2 -> -0.0634765625 | CR23: =-BT23/3*Input!$B$1 -> 0.03173828125 | CS23: -0.03173828125 | CU23: =+CM14*Input!$B$1^2 -> 0.0537109375 | CV23: =+BT23/6*Input!$B$1 -> -0.01586914062 | CW23: 0.03784179688 | DL23: =+DC14*Input!$B$1 -> 0 | DM23: =+DD14*Input!$B$1 -> 0.078125 | DN23: =+DE14*Input!$B$1 -> 0.15625 | DO23: =+DF14*Input!$B$1 -> 0.234375 | DP23: =+DG14*Input!$B$1 -> 0.1875 | DQ23: =+DH14*Input!$B$1 -> 0.140625 | DR23: =+DI14*Input!$B$1 -> 0.09375 | DS23: =+DJ14*Input!$B$1 -> 0.046875 | DT23: =+DK14*Input!$B$1 -> 0 | DX23: 0 | DY23: -0.01190185547 | DZ23: -0.02380371094 | EA23: -0.03570556641 | EB23: -0.04760742188 | EC23: -0.05950927734 | ED23: -0.07141113281 | EE23: -0.08331298828 | EF23: -0.09521484375 | EG23: -0.09521484375 | EH23: -0.08331298828 | EI23: -0.07141113281 | EJ23: -0.05950927734 | EK23: -0.04760742188 | EL23: -0.03570556641 | EM23: -0.02380371094 | EN23: -0.01190185547 | EO23: 0 | ER23: 0 | ES23: -0.01190185547 | ET23: -0.02380371094 | EU23: -0.03570556641 | EV23: -0.04760742188 | EW23: -0.05950927734 | EX23: -0.07141113281 | EY23: -0.08331298828 | EZ23: -0.09521484375 | FA23: -0.09521484375 | FB23: -0.005187988281 | FC23: 0.08483886719 | FD23: 0.1748657227 | FE23: 0.1398925781 | FF23: 0.1049194336 | FG23: 0.06994628906 | FH23: 0.03497314453 | FI23: 0 | FL23: 0 | FM23: -0.1190185547 | FN23: -0.2380371094 | FO23: -0.3570556641 | FP23: -0.4760742188 | FQ23: -0.5950927734 | FR23: -0.7141113281 | FS23: -0.8331298828 | FT23: -0.9521484375 | FU23: -0.9521484375 | FV23: -0.05187988281 | FW23: 0.8483886719 | FX23: 1.748657227 | FY23: 1.398925781 | FZ23: 1.049194336 | GA23: 0.6994628906 | GB23: 0.3497314453 | GC23: 0 | GG23: 0.625 | GQ23: =+GH14*(Input!$B$1^3) -> 0 | GR23: =+GI14*(Input!$B$1^3) -> 0.007731119792 | GS23: =+GJ14*(Input!$B$1^3) -> 0.01424153646 | GT23: =+GK14*(Input!$B$1^3) -> 0.01831054688 | GU23: =+GL14*(Input!$B$1^3) -> 0.01904296875 | GV23: =+GM14*(Input!$B$1^3) -> 0.01684570312 | GW23: =+GN14*(Input!$B$1^3) -> 0.01245117188 | GX23: =+GO14*(Input!$B$1^3) -> 0.006591796875 | GY23: =+GP14*(Input!$B$1^3) -> 0 | HA23: 0 | HB23: -0.001952648163 | HC23: -0.003719329834 | HD23: -0.005114078522 | HE23: -0.005950927734 | HF23: -0.00604391098 | HG23: -0.005207061768 | HH23: -0.003254413605 | HI23: 0 | HJ23: 0 | HK23: -0.003254413605 | HL23: -0.005207061768 | HM23: -0.00604391098 | HN23: -0.005950927734 | HO23: -0.005114078522 | HP23: -0.003719329834 | HQ23: -0.001952648163 | HR23: 0 | HV23: 0 | HW23: -0.001952648163 | HX23: -0.003719329834 | HY23: -0.005114078522 | HZ23: -0.005950927734 | IA23: -0.00604391098 | IB23: -0.005207061768 | IC23: -0.003254413605 | ID23: 0 | IE23: 0 | IF23: 0.004476706187 | IG23: 0.009034474691 | IH23: 0.01226663589 | II23: 0.01309204102 | IJ23: 0.0117316246 | IK23: 0.008731842041 | IL23: 0.004639148712 | IM23: 0 | IP23: 0 | IQ23: -0.1952648163 | IR23: -0.3719329834 | IS23: -0.5114078522 | IT23: -0.5950927734 | IU23: -0.604391098 | IV23: -0.5207061768 | IW23: -0.3254413605 | IX23: 0 | IY23: 0 | IZ23: 0.4476706187 | JA23: 0.9034474691 | JB23: 1.226663589 | JC23: 1.309204102 | JD23: 1.17316246 | JE23: 0.8731842041 | JF23: 0.4639148712 | JG23: 0 | JU23: =+JL14*Input!$B$1 -> 0 | JV23: =+JM14*Input!$B$1 -> 0.78125 | JW23: =+JN14*Input!$B$1 -> 1.5625 | JX23: =+JO14*Input!$B$1 -> 2.34375 | JY23: =+JP14*Input!$B$1 -> 3.125 | JZ23: =+JQ14*Input!$B$1 -> 3.90625 | KA23: =+JR14*Input!$B$1 -> 4.6875 | KB23: =+JS14*Input!$B$1 -> 5.46875 | KC23: =+JT14*Input!$B$1 -> 6.25 | KN23: =+KE14*Input!$B$1 -> 3.75 | KO23: =+KF14*Input!$B$1 -> 3.28125 | KP23: =+KG14*Input!$B$1 -> 2.8125 | KQ23: =+KH14*Input!$B$1 -> 2.34375 | KR23: =+KI14*Input!$B$1 -> 1.875 | KS23: =+KJ14*Input!$B$1 -> 1.40625 | KT23: =+KK14*Input!$B$1 -> 0.9375 | KU23: =+KL14*Input!$B$1 -> 0.46875 | KV23: =+KM14*Input!$B$1 -> 0 | KX23: 0 | KY23: -0.1190185547 | KZ23: -0.2380371094 | LA23: -0.3570556641 | LB23: -0.4760742188 | LC23: -0.5950927734 | LD23: -0.7141113281 | LE23: -0.8331298828 | LF23: -0.9521484375 | LG23: -0.9521484375 | LH23: -0.05187988281 | LI23: 0.8483886719 | LJ23: 1.748657227 | LK23: 2.648925781 | LL23: 3.549194336 | LM23: 4.449462891 | LN23: 5.349731445 | LO23: 6.25 | LQ23: 0 | LR23: -0.1190185547 | LS23: -0.2380371094 | LT23: -0.3570556641 | LU23: -0.4760742188 | LV23: -0.5950927734 | LW23: -0.7141113281 | LX23: -0.8331298828 | LY23: -0.9521484375 | LZ23: 2.797851562 | MA23: 2.448120117 | MB23: 2.098388672 | MC23: 1.748657227 | MD23: 1.398925781 | ME23: 1.049194336 | MF23: 0.6994628906 | MG23: 0.3497314453 | MH23: 0
C24: 15 | D24: 0 | E24: -0.03845214844 | F24: -0.07690429688 | G24: -0.1153564453 | H24: -0.1538085938 | I24: -0.1922607422 | J24: -0.2307128906 | K24: -0.2691650391 | L24: -0.3076171875 | M24: -0.3076171875 | N24: -0.1129150391 | O24: 0.08178710938 | P24: 0.2764892578 | Q24: 0.4711914062 | R24: 0.6658935547 | S24: 0.8605957031 | T24: 1.055297852 | U24: 0 | V24: -0.03076171875 | W24: 0.1557617188 | X24: -0.03076171875 | Y24: 0.1865234375 | Z24: 0.8442382812 | AC24: -0.8442382812 | AE24: 0 | AF24: -0.03076171875 | AG24: -0.03076171875 | AH24: -0.03076171875 | AI24: -0.03076171875 | AJ24: -0.03076171875 | AK24: -0.03076171875 | AL24: -0.03076171875 | AM24: -0.03076171875 | AN24: -0.03076171875 | AO24: -0.03076171875 | AP24: -0.03076171875 | AQ24: -0.03076171875 | AR24: -0.03076171875 | AS24: -0.03076171875 | AT24: -0.03076171875 | AU24: -0.03076171875 | AV24: 0.1557617188 | AW24: 0.1557617188 | AX24: 0.1557617188 | AY24: 0.1557617188 | AZ24: 0.1557617188 | BA24: 0.1557617188 | BB24: 0.1557617188 | BC24: 0.1557617188 | BD24: 0.1557617188 | BE24: 0.1557617188 | BF24: =+$W24 -> 0.1557617188 | BG24: =+$W24 -> 0.1557617188 | BH24: =+$W24 -> 0.1557617188 | BI24: =+$W24 -> 0.1557617188 | BJ24: =-$Z24 -> -0.8442382812 | BK24: =-$Z24 -> -0.8442382812 | BL24: 0 | BQ24: 0.5 | BR24: 1.5 | BS24: 0.375 | BT24: =-(Input!$B$1^2)*BS24/(2*(1+Input!$B$1)) -> -0.09375 | BV24: -0.09375 | BW24: 0.5 | BX24: =-(1+1/Input!$B$1)*BT24 -> 0.1875 | BY24: 0.6875 | CA24: -0.09375 | CC24: 0.5 | CD24: =+BT24/Input!$B$1 -> -0.09375 | CE24: 0.40625 | CF24: 0.5 | CG24: =+CF24-BT24/Input!$B$1 -> 0.59375 | CJ24: 0.015625 | CK24: 0.015625 | CN24: -0.03125 | CO24: -0.03125 | CQ24: =+CI15*Input!$B$1^2 -> -0.0625 | CR24: =-BT24/3*Input!$B$1 -> 0.03125 | CS24: -0.03125 | CU24: =+CM15*Input!$B$1^2 -> 0.0625 | CV24: =+BT24/6*Input!$B$1 -> -0.015625 | CW24: 0.046875 | DL24: =+DC15*Input!$B$1 -> 0 | DM24: =+DD15*Input!$B$1 -> 0.0625 | DN24: =+DE15*Input!$B$1 -> 0.125 | DO24: =+DF15*Input!$B$1 -> 0.1875 | DP24: =+DG15*Input!$B$1 -> 0.25 | DQ24: =+DH15*Input!$B$1 -> 0.1875 | DR24: =+DI15*Input!$B$1 -> 0.125 | DS24: =+DJ15*Input!$B$1 -> 0.0625 | DT24: =+DK15*Input!$B$1 -> 0 | DX24: 0 | DY24: -0.01171875 | DZ24: -0.0234375 | EA24: -0.03515625 | EB24: -0.046875 | EC24: -0.05859375 | ED24: -0.0703125 | EE24: -0.08203125 | EF24: -0.09375 | EG24: -0.09375 | EH24: -0.08203125 | EI24: -0.0703125 | EJ24: -0.05859375 | EK24: -0.046875 | EL24: -0.03515625 | EM24: -0.0234375 | EN24: -0.01171875 | EO24: 0 | ER24: 0 | ES24: -0.01171875 | ET24: -0.0234375 | EU24: -0.03515625 | EV24: -0.046875 | EW24: -0.05859375 | EX24: -0.0703125 | EY24: -0.08203125 | EZ24: -0.09375 | FA24: -0.09375 | FB24: -0.01953125 | FC24: 0.0546875 | FD24: 0.12890625 | FE24: 0.203125 | FF24: 0.15234375 | FG24: 0.1015625 | FH24: 0.05078125 | FI24: 0 | FL24: 0 | FM24: -0.1171875 | FN24: -0.234375 | FO24: -0.3515625 | FP24: -0.46875 | FQ24: -0.5859375 | FR24: -0.703125 | FS24: -0.8203125 | FT24: -0.9375 | FU24: -0.9375 | FV24: -0.1953125 | FW24: 0.546875 | FX24: 1.2890625 | FY24: 2.03125 | FZ24: 1.5234375 | GA24: 1.015625 | GB24: 0.5078125 | GC24: 0 | GG24: 0.5 | GQ24: =+GH15*(Input!$B$1^3) -> 0 | GR24: =+GI15*(Input!$B$1^3) -> 0.007649739583 | GS24: =+GJ15*(Input!$B$1^3) -> 0.01432291667 | GT24: =+GK15*(Input!$B$1^3) -> 0.01904296875 | GU24: =+GL15*(Input!$B$1^3) -> 0.02083333333 | GV24: =+GM15*(Input!$B$1^3) -> 0.01904296875 | GW24: =+GN15*(Input!$B$1^3) -> 0.01432291667 | GX24: =+GO15*(Input!$B$1^3) -> 0.007649739583 | GY24: =+GP15*(Input!$B$1^3) -> 0 | HA24: 0 | HB24: -0.001922607422 | HC24: -0.003662109375 | HD24: -0.005035400391 | HE24: -0.005859375 | HF24: -0.005950927734 | HG24: -0.005126953125 | HH24: -0.003204345703 | HI24: 0 | HJ24: 0 | HK24: -0.003204345703 | HL24: -0.005126953125 | HM24: -0.005950927734 | HN24: -0.005859375 | HO24: -0.005035400391 | HP24: -0.003662109375 | HQ24: -0.001922607422 | HR24: 0 | HV24: 0 | HW24: -0.001922607422 | HX24: -0.003662109375 | HY24: -0.005035400391 | HZ24: -0.005859375 | IA24: -0.005950927734 | IB24: -0.005126953125 | IC24: -0.003204345703 | ID24: 0 | IE24: 0 | IF24: 0.00444539388 | IG24: 0.009195963542 | IH24: 0.01309204102 | II24: 0.01497395833 | IJ24: 0.01400756836 | IK24: 0.01066080729 | IL24: 0.005727132161 | IM24: 0 | IP24: 0 | IQ24: -0.1922607422 | IR24: -0.3662109375 | IS24: -0.5035400391 | IT24: -0.5859375 | IU24: -0.5950927734 | IV24: -0.5126953125 | IW24: -0.3204345703 | IX24: 0 | IY24: 0 | IZ24: 0.444539388 | JA24: 0.9195963542 | JB24: 1.309204102 | JC24: 1.497395833 | JD24: 1.400756836 | JE24: 1.066080729 | JF24: 0.5727132161 | JG24: 0 | JU24: =+JL15*Input!$B$1 -> 0 | JV24: =+JM15*Input!$B$1 -> 0.625 | JW24: =+JN15*Input!$B$1 -> 1.25 | JX24: =+JO15*Input!$B$1 -> 1.875 | JY24: =+JP15*Input!$B$1 -> 2.5 | JZ24: =+JQ15*Input!$B$1 -> 3.125 | KA24: =+JR15*Input!$B$1 -> 3.75 | KB24: =+JS15*Input!$B$1 -> 4.375 | KC24: =+JT15*Input!$B$1 -> 5 | KN24: =+KE15*Input!$B$1 -> 5 | KO24: =+KF15*Input!$B$1 -> 4.375 | KP24: =+KG15*Input!$B$1 -> 3.75 | KQ24: =+KH15*Input!$B$1 -> 3.125 | KR24: =+KI15*Input!$B$1 -> 2.5 | KS24: =+KJ15*Input!$B$1 -> 1.875 | KT24: =+KK15*Input!$B$1 -> 1.25 | KU24: =+KL15*Input!$B$1 -> 0.625 | KV24: =+KM15*Input!$B$1 -> 0 | KX24: 0 | KY24: -0.1171875 | KZ24: -0.234375 | LA24: -0.3515625 | LB24: -0.46875 | LC24: -0.5859375 | LD24: -0.703125 | LE24: -0.8203125 | LF24: -0.9375 | LG24: -0.9375 | LH24: -0.1953125 | LI24: 0.546875 | LJ24: 1.2890625 | LK24: 2.03125 | LL24: 2.7734375 | LM24: 3.515625 | LN24: 4.2578125 | LO24: 5 | LQ24: 0 | LR24: -0.1171875 | LS24: -0.234375 | LT24: -0.3515625 | LU24: -0.46875 | LV24: -0.5859375 | LW24: -0.703125 | LX24: -0.8203125 | LY24: -0.9375 | LZ24: 4.0625 | MA24: 3.5546875 | MB24: 3.046875 | MC24: 2.5390625 | MD24: 2.03125 | ME24: 1.5234375 | MF24: 1.015625 | MG24: 0.5078125 | MH24: 0
C25: 16 | D25: 0 | E25: 0 | F25: 0 | G25: 0 | H25: 0 | I25: 0 | J25: 0 | K25: 0 | L25: 0 | M25: 0 | N25: 0 | O25: 0 | P25: 0 | Q25: 0 | R25: 0 | S25: 0 | T25: 0 | U25: 0 | V25: 0 | W25: 0 | X25: 0 | Y25: 0 | Z25: 1 | AC25: -1 | BQ25: 0.625 | BR25: 1.625 | BS25: 0.322265625 | BT25: =-(Input!$B$1^2)*BS25/(2*(1+Input!$B$1)) -> -0.08056640625 | BV25: -0.08056640625 | BW25: 0.375 | BX25: =-(1+1/Input!$B$1)*BT25 -> 0.1611328125 | BY25: 0.5361328125 | CA25: -0.08056640625 | CC25: 0.625 | CD25: =+BT25/Input!$B$1 -> -0.08056640625 | CE25: 0.5444335938 | CF25: 0.375 | CG25: =+CF25-BT25/Input!$B$1 -> 0.4555664062 | CJ25: 0.01342773438 | CK25: 0.01342773438 | CN25: -0.02685546875 | CO25: -0.02685546875 | CQ25: =+CI16*Input!$B$1^2 -> -0.0537109375 | CR25: =-BT25/3*Input!$B$1 -> 0.02685546875 | CS25: -0.02685546875 | CU25: =+CM16*Input!$B$1^2 -> 0.0634765625 | CV25: =+BT25/6*Input!$B$1 -> -0.01342773438 | CW25: 0.05004882812 | DL25: =+DC16*Input!$B$1 -> 0 | DM25: =+DD16*Input!$B$1 -> 0.046875 | DN25: =+DE16*Input!$B$1 -> 0.09375 | DO25: =+DF16*Input!$B$1 -> 0.140625 | DP25: =+DG16*Input!$B$1 -> 0.1875 | DQ25: =+DH16*Input!$B$1 -> 0.234375 | DR25: =+DI16*Input!$B$1 -> 0.15625 | DS25: =+DJ16*Input!$B$1 -> 0.078125 | DT25: =+DK16*Input!$B$1 -> 0 | DX25: 0 | DY25: -0.01007080078 | DZ25: -0.02014160156 | EA25: -0.03021240234 | EB25: -0.04028320312 | EC25: -0.05035400391 | ED25: -0.06042480469 | EE25: -0.07049560547 | EF25: -0.08056640625 | EG25: -0.08056640625 | EH25: -0.07049560547 | EI25: -0.06042480469 | EJ25: -0.05035400391 | EK25: -0.04028320312 | EL25: -0.03021240234 | EM25: -0.02014160156 | EN25: -0.01007080078 | EO25: 0 | ER25: 0 | ES25: -0.01007080078 | ET25: -0.02014160156 | EU25: -0.03021240234 | EV25: -0.04028320312 | EW25: -0.05035400391 | EX25: -0.06042480469 | EY25: -0.07049560547 | EZ25: -0.08056640625 | FA25: -0.08056640625 | FB25: -0.02362060547 | FC25: 0.03332519531 | FD25: 0.09027099609 | FE25: 0.1472167969 | FF25: 0.2041625977 | FG25: 0.1361083984 | FH25: 0.06805419922 | FI25: 0 | FL25: 0 | FM25: -0.1007080078 | FN25: -0.2014160156 | FO25: -0.3021240234 | FP25: -0.4028320312 | FQ25: -0.5035400391 | FR25: -0.6042480469 | FS25: -0.7049560547 | FT25: -0.8056640625 | FU25: -0.8056640625 | FV25: -0.2362060547 | FW25: 0.3332519531 | FX25: 0.9027099609 | FY25: 1.472167969 | FZ25: 2.041625977 | GA25: 1.361083984 | GB25: 0.6805419922 | GC25: 0 | GG25: 0.375 | GQ25: =+GH16*(Input!$B$1^3) -> 0 | GR25: =+GI16*(Input!$B$1^3) -> 0.006591796875 | GS25: =+GJ16*(Input!$B$1^3) -> 0.01245117188 | GT25: =+GK16*(Input!$B$1^3) -> 0.01684570312 | GU25: =+GL16*(Input!$B$1^3) -> 0.01904296875 | GV25: =+GM16*(Input!$B$1^3) -> 0.01831054688 | GW25: =+GN16*(Input!$B$1^3) -> 0.01424153646 | GX25: =+GO16*(Input!$B$1^3) -> 0.007731119792 | GY25: =+GP16*(Input!$B$1^3) -> 0 | HA25: 0 | HB25: -0.001652240753 | HC25: -0.003147125244 | HD25: -0.004327297211 | HE25: -0.005035400391 | HF25: -0.005114078522 | HG25: -0.004405975342 | HH25: -0.002753734589 | HI25: 0 | HJ25: 0 | HK25: -0.002753734589 | HL25: -0.004405975342 | HM25: -0.005114078522 | HN25: -0.005035400391 | HO25: -0.004327297211 | HP25: -0.003147125244 | HQ25: -0.001652240753 | HR25: 0 | HV25: 0 | HW25: -0.001652240753 | HX25: -0.003147125244 | HY25: -0.004327297211 | HZ25: -0.005035400391 | IA25: -0.005114078522 | IB25: -0.004405975342 | IC25: -0.002753734589 | ID25: 0 | IE25: 0 | IF25: 0.003838062286 | IG25: 0.008045196533 | IH25: 0.0117316246 | II25: 0.01400756836 | IJ25: 0.01398324966 | IK25: 0.01109441121 | IL25: 0.006078879038 | IM25: 0 | IP25: 0 | IQ25: -0.1652240753 | IR25: -0.3147125244 | IS25: -0.4327297211 | IT25: -0.5035400391 | IU25: -0.5114078522 | IV25: -0.4405975342 | IW25: -0.2753734589 | IX25: 0 | IY25: 0 | IZ25: 0.3838062286 | JA25: 0.8045196533 | JB25: 1.17316246 | JC25: 1.400756836 | JD25: 1.398324966 | JE25: 1.109441121 | JF25: 0.6078879038 | JG25: 0 | JU25: =+JL16*Input!$B$1 -> 0 | JV25: =+JM16*Input!$B$1 -> 0.46875 | JW25: =+JN16*Input!$B$1 -> 0.9375 | JX25: =+JO16*Input!$B$1 -> 1.40625 | JY25: =+JP16*Input!$B$1 -> 1.875 | JZ25: =+JQ16*Input!$B$1 -> 2.34375 | KA25: =+JR16*Input!$B$1 -> 2.8125 | KB25: =+JS16*Input!$B$1 -> 3.28125 | KC25: =+JT16*Input!$B$1 -> 3.75 | KN25: =+KE16*Input!$B$1 -> 6.25 | KO25: =+KF16*Input!$B$1 -> 5.46875 | KP25: =+KG16*Input!$B$1 -> 4.6875 | KQ25: =+KH16*Input!$B$1 -> 3.90625 | KR25: =+KI16*Input!$B$1 -> 3.125 | KS25: =+KJ16*Input!$B$1 -> 2.34375 | KT25: =+KK16*Input!$B$1 -> 1.5625 | KU25: =+KL16*Input!$B$1 -> 0.78125 | KV25: =+KM16*Input!$B$1 -> 0 | KX25: 0 | KY25: -0.1007080078 | KZ25: -0.2014160156 | LA25: -0.3021240234 | LB25: -0.4028320312 | LC25: -0.5035400391 | LD25: -0.6042480469 | LE25: -0.7049560547 | LF25: -0.8056640625 | LG25: -0.8056640625 | LH25: -0.2362060547 | LI25: 0.3332519531 | LJ25: 0.9027099609 | LK25: 1.472167969 | LL25: 2.041625977 | LM25: 2.611083984 | LN25: 3.180541992 | LO25: 3.75 | LQ25: 0 | LR25: -0.1007080078 | LS25: -0.2014160156 | LT25: -0.3021240234 | LU25: -0.4028320312 | LV25: -0.5035400391 | LW25: -0.6042480469 | LX25: -0.7049560547 | LY25: -0.8056640625 | LZ25: 5.444335938 | MA25: 4.763793945 | MB25: 4.083251953 | MC25: 3.402709961 | MD25: 2.722167969 | ME25: 2.041625977 | MF25: 1.361083984 | MG25: 0.6805419922 | MH25: 0
D26: ×L1/10 | V26: ×1 | BQ26: 0.75 | BR26: 1.75 | BS26: 0.234375 | BT26: =-(Input!$B$1^2)*BS26/(2*(1+Input!$B$1)) -> -0.05859375 | BV26: -0.05859375 | BW26: 0.25 | BX26: =-(1+1/Input!$B$1)*BT26 -> 0.1171875 | BY26: 0.3671875 | CA26: -0.05859375 | CC26: 0.75 | CD26: =+BT26/Input!$B$1 -> -0.05859375 | CE26: 0.69140625 | CF26: 0.25 | CG26: =+CF26-BT26/Input!$B$1 -> 0.30859375 | CJ26: 0.009765625 | CK26: 0.009765625 | CN26: -0.01953125 | CO26: -0.01953125 | CQ26: =+CI17*Input!$B$1^2 -> -0.0390625 | CR26: =-BT26/3*Input!$B$1 -> 0.01953125 | CS26: -0.01953125 | CU26: =+CM17*Input!$B$1^2 -> 0.0546875 | CV26: =+BT26/6*Input!$B$1 -> -0.009765625 | CW26: 0.044921875 | DL26: =+DC17*Input!$B$1 -> 0 | DM26: =+DD17*Input!$B$1 -> 0.03125 | DN26: =+DE17*Input!$B$1 -> 0.0625 | DO26: =+DF17*Input!$B$1 -> 0.09375 | DP26: =+DG17*Input!$B$1 -> 0.125 | DQ26: =+DH17*Input!$B$1 -> 0.15625 | DR26: =+DI17*Input!$B$1 -> 0.1875 | DS26: =+DJ17*Input!$B$1 -> 0.09375 | DT26: =+DK17*Input!$B$1 -> 0 | DX26: 0 | DY26: -0.00732421875 | DZ26: -0.0146484375 | EA26: -0.02197265625 | EB26: -0.029296875 | EC26: -0.03662109375 | ED26: -0.0439453125 | EE26: -0.05126953125 | EF26: -0.05859375 | EG26: -0.05859375 | EH26: -0.05126953125 | EI26: -0.0439453125 | EJ26: -0.03662109375 | EK26: -0.029296875 | EL26: -0.02197265625 | EM26: -0.0146484375 | EN26: -0.00732421875 | EO26: 0 | ER26: 0 | ES26: -0.00732421875 | ET26: -0.0146484375 | EU26: -0.02197265625 | EV26: -0.029296875 | EW26: -0.03662109375 | EX26: -0.0439453125 | EY26: -0.05126953125 | EZ26: -0.05859375 | FA26: -0.05859375 | FB26: -0.02001953125 | FC26: 0.0185546875 | FD26: 0.05712890625 | FE26: 0.095703125 | FF26: 0.1342773438 | FG26: 0.1728515625 | FH26: 0.08642578125 | FI26: 0 | FL26: 0 | FM26: -0.0732421875 | FN26: -0.146484375 | FO26: -0.2197265625 | FP26: -0.29296875 | FQ26: -0.3662109375 | FR26: -0.439453125 | FS26: -0.5126953125 | FT26: -0.5859375 | FU26: -0.5859375 | FV26: -0.2001953125 | FW26: 0.185546875 | FX26: 0.5712890625 | FY26: 0.95703125 | FZ26: 1.342773438 | GA26: 1.728515625 | GB26: 0.8642578125 | GC26: 0 | GG26: 0.25 | GQ26: =+GH17*(Input!$B$1^3) -> 0 | GR26: =+GI17*(Input!$B$1^3) -> 0.004801432292 | GS26: =+GJ17*(Input!$B$1^3) -> 0.009114583333 | GT26: =+GK17*(Input!$B$1^3) -> 0.01245117188 | GU26: =+GL17*(Input!$B$1^3) -> 0.01432291667 | GV26: =+GM17*(Input!$B$1^3) -> 0.01424153646 | GW26: =+GN17*(Input!$B$1^3) -> 0.01171875 | GX26: =+GO17*(Input!$B$1^3) -> 0.006591796875 | GY26: =+GP17*(Input!$B$1^3) -> 0 | HA26: 0 | HB26: -0.001201629639 | HC26: -0.002288818359 | HD26: -0.003147125244 | HE26: -0.003662109375 | HF26: -0.003719329834 | HG26: -0.003204345703 | HH26: -0.002002716064 | HI26: 0 | HJ26: 0 | HK26: -0.002002716064 | HL26: -0.003204345703 | HM26: -0.003719329834 | HN26: -0.003662109375 | HO26: -0.003147125244 | HP26: -0.002288818359 | HQ26: -0.001201629639 | HR26: 0 | HV26: 0 | HW26: -0.001201629639 | HX26: -0.002288818359 | HY26: -0.003147125244 | HZ26: -0.003662109375 | IA26: -0.003719329834 | IB26: -0.003204345703 | IC26: -0.002002716064 | ID26: 0 | IE26: 0 | IF26: 0.002798716227 | IG26: 0.00591023763 | IH26: 0.008731842041 | II26: 0.01066080729 | IJ26: 0.01109441121 | IK26: 0.009429931641 | IL26: 0.005390167236 | IM26: 0 | IP26: 0 | IQ26: -0.1201629639 | IR26: -0.2288818359 | IS26: -0.3147125244 | IT26: -0.3662109375 | IU26: -0.3719329834 | IV26: -0.3204345703 | IW26: -0.2002716064 | IX26: 0 | IY26: 0 | IZ26: 0.2798716227 | JA26: 0.591023763 | JB26: 0.8731842041 | JC26: 1.066080729 | JD26: 1.109441121 | JE26: 0.9429931641 | JF26: 0.5390167236 | JG26: 0 | JU26: =+JL17*Input!$B$1 -> 0 | JV26: =+JM17*Input!$B$1 -> 0.3125 | JW26: =+JN17*Input!$B$1 -> 0.625 | JX26: =+JO17*Input!$B$1 -> 0.9375 | JY26: =+JP17*Input!$B$1 -> 1.25 | JZ26: =+JQ17*Input!$B$1 -> 1.5625 | KA26: =+JR17*Input!$B$1 -> 1.875 | KB26: =+JS17*Input!$B$1 -> 2.1875 | KC26: =+JT17*Input!$B$1 -> 2.5 | KN26: =+KE17*Input!$B$1 -> 7.5 | KO26: =+KF17*Input!$B$1 -> 6.5625 | KP26: =+KG17*Input!$B$1 -> 5.625 | KQ26: =+KH17*Input!$B$1 -> 4.6875 | KR26: =+KI17*Input!$B$1 -> 3.75 | KS26: =+KJ17*Input!$B$1 -> 2.8125 | KT26: =+KK17*Input!$B$1 -> 1.875 | KU26: =+KL17*Input!$B$1 -> 0.9375 | KV26: =+KM17*Input!$B$1 -> 0 | KX26: 0 | KY26: -0.0732421875 | KZ26: -0.146484375 | LA26: -0.2197265625 | LB26: -0.29296875 | LC26: -0.3662109375 | LD26: -0.439453125 | LE26: -0.5126953125 | LF26: -0.5859375 | LG26: -0.5859375 | LH26: -0.2001953125 | LI26: 0.185546875 | LJ26: 0.5712890625 | LK26: 0.95703125 | LL26: 1.342773438 | LM26: 1.728515625 | LN26: 2.114257812 | LO26: 2.5 | LQ26: 0 | LR26: -0.0732421875 | LS26: -0.146484375 | LT26: -0.2197265625 | LU26: -0.29296875 | LV26: -0.3662109375 | LW26: -0.439453125 | LX26: -0.5126953125 | LY26: -0.5859375 | LZ26: 6.9140625 | MA26: 6.049804688 | MB26: 5.185546875 | MC26: 4.321289062 | MD26: 3.45703125 | ME26: 2.592773438 | MF26: 1.728515625 | MG26: 0.8642578125 | MH26: 0
C27: Span 1 | D27: =+FL30 -> 0 | E27: 0.46875 | F27: 0.78125 | G27: 0.9375 | H27: 0.9375 | I27: 0.78125 | J27: 0.46875 | K27: 0 | L27: -0.625 | M27: -0.625 | N27: =+FV30 -> -0.546875 | O27: -0.46875 | P27: -0.390625 | Q27: -0.3125 | R27: -0.234375 | S27: -0.15625 | T27: -0.078125 | U27: 0 | V27: =+CA30 -> -0.5625 | W27: =+CG30 -> 0.0625 | X27: =+BV30 -> 0.4375 | Y27: =+BY30 -> 0.625 | Z27: =+CE30 -> -0.0625 | AE27: =+X27 -> 0.4375 | AU27: =+V27 -> -0.5625 | AV27: =+W27 -> 0.0625 | BL27: =+W27 -> 0.0625 | BQ27: 0.875 | BR27: 1.875 | BS27: 0.123046875 | BT27: =-(Input!$B$1^2)*BS27/(2*(1+Input!$B$1)) -> -0.03076171875 | BV27: -0.03076171875 | BW27: 0.125 | BX27: =-(1+1/Input!$B$1)*BT27 -> 0.0615234375 | BY27: 0.1865234375 | CA27: -0.03076171875 | CC27: 0.875 | CD27: =+BT27/Input!$B$1 -> -0.03076171875 | CE27: 0.8442382812 | CF27: 0.125 | CG27: =+CF27-BT27/Input!$B$1 -> 0.1557617188 | CJ27: 0.005126953125 | CK27: 0.005126953125 | CN27: -0.01025390625 | CO27: -0.01025390625 | CQ27: =+CI18*Input!$B$1^2 -> -0.0205078125 | CR27: =-BT27/3*Input!$B$1 -> 0.01025390625 | CS27: -0.01025390625 | CU27: =+CM18*Input!$B$1^2 -> 0.0341796875 | CV27: =+BT27/6*Input!$B$1 -> -0.005126953125 | CW27: 0.02905273438 | DL27: =+DC18*Input!$B$1 -> 0 | DM27: =+DD18*Input!$B$1 -> 0.015625 | DN27: =+DE18*Input!$B$1 -> 0.03125 | DO27: =+DF18*Input!$B$1 -> 0.046875 | DP27: =+DG18*Input!$B$1 -> 0.0625 | DQ27: =+DH18*Input!$B$1 -> 0.078125 | DR27: =+DI18*Input!$B$1 -> 0.09375 | DS27: =+DJ18*Input!$B$1 -> 0.109375 | DT27: =+DK18*Input!$B$1 -> 0 | DX27: 0 | DY27: -0.003845214844 | DZ27: -0.007690429688 | EA27: -0.01153564453 | EB27: -0.01538085938 | EC27: -0.01922607422 | ED27: -0.02307128906 | EE27: -0.02691650391 | EF27: -0.03076171875 | EG27: -0.03076171875 | EH27: -0.02691650391 | EI27: -0.02307128906 | EJ27: -0.01922607422 | EK27: -0.01538085938 | EL27: -0.01153564453 | EM27: -0.007690429688 | EN27: -0.003845214844 | EO27: 0 | ER27: 0 | ES27: -0.003845214844 | ET27: -0.007690429688 | EU27: -0.01153564453 | EV27: -0.01538085938 | EW27: -0.01922607422 | EX27: -0.02307128906 | EY27: -0.02691650391 | EZ27: -0.03076171875 | FA27: -0.03076171875 | FB27: -0.01129150391 | FC27: 0.008178710938 | FD27: 0.02764892578 | FE27: 0.04711914062 | FF27: 0.06658935547 | FG27: 0.08605957031 | FH27: 0.1055297852 | FI27: 0 | FL27: 0 | FM27: -0.03845214844 | FN27: -0.07690429688 | FO27: -0.1153564453 | FP27: -0.1538085938 | FQ27: -0.1922607422 | FR27: -0.2307128906 | FS27: -0.2691650391 | FT27: -0.3076171875 | FU27: -0.3076171875 | FV27: -0.1129150391 | FW27: 0.08178710938 | FX27: 0.2764892578 | FY27: 0.4711914062 | FZ27: 0.6658935547 | GA27: 0.8605957031 | GB27: 1.055297852 | GC27: 0 | GG27: 0.125 | GQ27: =+GH18*(Input!$B$1^3) -> 0 | GR27: =+GI18*(Input!$B$1^3) -> 0.002522786458 | GS27: =+GJ18*(Input!$B$1^3) -> 0.004801432292 | GT27: =+GK18*(Input!$B$1^3) -> 0.006591796875 | GU27: =+GL18*(Input!$B$1^3) -> 0.007649739583 | GV27: =+GM18*(Input!$B$1^3) -> 0.007731119792 | GW27: =+GN18*(Input!$B$1^3) -> 0.006591796875 | GX27: =+GO18*(Input!$B$1^3) -> 0.003987630208 | GY27: =+GP18*(Input!$B$1^3) -> 0 | HA27: 0 | HB27: -0.0006308555603 | HC27: -0.001201629639 | HD27: -0.001652240753 | HE27: -0.001922607422 | HF27: -0.001952648163 | HG27: -0.001682281494 | HH27: -0.001051425934 | HI27: 0 | HJ27: 0 | HK27: -0.001051425934 | HL27: -0.001682281494 | HM27: -0.001952648163 | HN27: -0.001922607422 | HO27: -0.001652240753 | HP27: -0.001201629639 | HQ27: -0.0006308555603 | HR27: 0 | HV27: 0 | HW27: -0.0006308555603 | HX27: -0.001201629639 | HY27: -0.001652240753 | HZ27: -0.001922607422 | IA27: -0.001952648163 | IB27: -0.001682281494 | IC27: -0.001051425934 | ID27: 0 | IE27: 0 | IF27: 0.001471360524 | IG27: 0.003119150798 | IH27: 0.004639148712 | II27: 0.005727132161 | IJ27: 0.006078879038 | IK27: 0.005390167236 | IL27: 0.003356774648 | IM27: 0 | IP27: 0 | IQ27: -0.06308555603 | IR27: -0.1201629639 | IS27: -0.1652240753 | IT27: -0.1922607422 | IU27: -0.1952648163 | IV27: -0.1682281494 | IW27: -0.1051425934 | IX27: 0 | IY27: 0 | IZ27: 0.1471360524 | JA27: 0.3119150798 | JB27: 0.4639148712 | JC27: 0.5727132161 | JD27: 0.6078879038 | JE27: 0.5390167236 | JF27: 0.3356774648 | JG27: 0 | JU27: =+JL18*Input!$B$1 -> 0 | JV27: =+JM18*Input!$B$1 -> 0.15625 | JW27: =+JN18*Input!$B$1 -> 0.3125 | JX27: =+JO18*Input!$B$1 -> 0.46875 | JY27: =+JP18*Input!$B$1 -> 0.625 | JZ27: =+JQ18*Input!$B$1 -> 0.78125 | KA27: =+JR18*Input!$B$1 -> 0.9375 | KB27: =+JS18*Input!$B$1 -> 1.09375 | KC27: =+JT18*Input!$B$1 -> 1.25 | KN27: =+KE18*Input!$B$1 -> 8.75 | KO27: =+KF18*Input!$B$1 -> 7.65625 | KP27: =+KG18*Input!$B$1 -> 6.5625 | KQ27: =+KH18*Input!$B$1 -> 5.46875 | KR27: =+KI18*Input!$B$1 -> 4.375 | KS27: =+KJ18*Input!$B$1 -> 3.28125 | KT27: =+KK18*Input!$B$1 -> 2.1875 | KU27: =+KL18*Input!$B$1 -> 1.09375 | KV27: =+KM18*Input!$B$1 -> 0 | KX27: 0 | KY27: -0.03845214844 | KZ27: -0.07690429688 | LA27: -0.1153564453 | LB27: -0.1538085938 | LC27: -0.1922607422 | LD27: -0.2307128906 | LE27: -0.2691650391 | LF27: -0.3076171875 | LG27: -0.3076171875 | LH27: -0.1129150391 | LI27: 0.08178710938 | LJ27: 0.2764892578 | LK27: 0.4711914062 | LL27: 0.6658935547 | LM27: 0.8605957031 | LN27: 1.055297852 | LO27: 1.25 | LQ27: 0 | LR27: -0.03845214844 | LS27: -0.07690429688 | LT27: -0.1153564453 | LU27: -0.1538085938 | LV27: -0.1922607422 | LW27: -0.2307128906 | LX27: -0.2691650391 | LY27: -0.3076171875 | LZ27: 8.442382812 | MA27: 7.387084961 | MB27: 6.331787109 | MC27: 5.276489258 | MD27: 4.221191406 | ME27: 3.165893555 | MF27: 2.110595703 | MG27: 1.055297852 | MH27: 0
C28: Span 2 | D28: 0 | E28: -0.078125 | F28: -0.15625 | G28: -0.234375 | H28: -0.3125 | I28: -0.390625 | J28: -0.46875 | K28: -0.546875 | L28: -0.625 | M28: -0.625 | N28: 0 | O28: 0.46875 | P28: 0.78125 | Q28: 0.9375 | R28: 0.9375 | S28: 0.78125 | T28: 0.46875 | U28: 0 | V28: =+CA31 -> -0.0625 | W28: =+CG31 -> 0.5625 | X28: =+BV31 -> -0.0625 | Y28: =+BY31 -> 0.625 | Z28: =+CE31 -> 0.4375 | AE28: =+X28 -> -0.0625 | AU28: =+X28 -> -0.0625 | AV28: =+W28 -> 0.5625 | BL28: =-Z28 -> -0.4375 | BQ28: 1 | BR28: 2 | BS28: 0 | BT28: =-(Input!$B$1^2)*BS28/(2*(1+Input!$B$1)) -> 0 | BV28: 0 | BW28: 0 | BX28: =-(1+1/Input!$B$1)*BT28 -> 0 | BY28: 0 | CA28: 0 | CC28: 1 | CD28: =+BT28/Input!$B$1 -> 0 | CE28: 1 | CF28: 0 | CG28: =+CF28-BT28/Input!$B$1 -> 0 | CJ28: 0 | CK28: 0 | CN28: 0 | CO28: 0 | CQ28: =+CI19*Input!$B$1^2 -> 0 | CR28: =-BT28/3*Input!$B$1 -> 0 | CS28: 0 | CU28: =+CM19*Input!$B$1^2 -> 0 | CV28: =+BT28/6*Input!$B$1 -> 0 | CW28: 0 | DL28: =+DC19*Input!$B$1 -> 0 | DM28: =+DD19*Input!$B$1 -> 0 | DN28: =+DE19*Input!$B$1 -> 0 | DO28: =+DF19*Input!$B$1 -> 0 | DP28: =+DG19*Input!$B$1 -> 0 | DQ28: =+DH19*Input!$B$1 -> 0 | DR28: =+DI19*Input!$B$1 -> 0 | DS28: =+DJ19*Input!$B$1 -> 0 | DT28: =+DK19*Input!$B$1 -> 0 | DX28: 0 | DY28: 0 | DZ28: 0 | EA28: 0 | EB28: 0 | EC28: 0 | ED28: 0 | EE28: 0 | EF28: 0 | EG28: 0 | EH28: 0 | EI28: 0 | EJ28: 0 | EK28: 0 | EL28: 0 | EM28: 0 | EN28: 0 | EO28: 0 | ER28: 0 | ES28: 0 | ET28: 0 | EU28: 0 | EV28: 0 | EW28: 0 | EX28: 0 | EY28: 0 | EZ28: 0 | FA28: 0 | FB28: 0 | FC28: 0 | FD28: 0 | FE28: 0 | FF28: 0 | FG28: 0 | FH28: 0 | FI28: 0 | FL28: 0 | FM28: 0 | FN28: 0 | FO28: 0 | FP28: 0 | FQ28: 0 | FR28: 0 | FS28: 0 | FT28: 0 | FU28: 0 | FV28: 0 | FW28: 0 | FX28: 0 | FY28: 0 | FZ28: 0 | GA28: 0 | GB28: 0 | GC28: 0 | GG28: 0 | GQ28: =+GH19*(Input!$B$1^3) -> 0 | GR28: =+GI19*(Input!$B$1^3) -> 0 | GS28: =+GJ19*(Input!$B$1^3) -> 0 | GT28: =+GK19*(Input!$B$1^3) -> 0 | GU28: =+GL19*(Input!$B$1^3) -> 0 | GV28: =+GM19*(Input!$B$1^3) -> 0 | GW28: =+GN19*(Input!$B$1^3) -> 0 | GX28: =+GO19*(Input!$B$1^3) -> 0 | GY28: =+GP19*(Input!$B$1^3) -> 0 | HA28: 0 | HB28: 0 | HC28: 0 | HD28: 0 | HE28: 0 | HF28: 0 | HG28: 0 | HH28: 0 | HI28: 0 | HJ28: 0 | HK28: 0 | HL28: 0 | HM28: 0 | HN28: 0 | HO28: 0 | HP28: 0 | HQ28: 0 | HR28: 0 | HV28: 0 | HW28: 0 | HX28: 0 | HY28: 0 | HZ28: 0 | IA28: 0 | IB28: 0 | IC28: 0 | ID28: 0 | IE28: 0 | IF28: 0 | IG28: 0 | IH28: 0 | II28: 0 | IJ28: 0 | IK28: 0 | IL28: 0 | IM28: 0 | IP28: 0 | IQ28: 0 | IR28: 0 | IS28: 0 | IT28: 0 | IU28: 0 | IV28: 0 | IW28: 0 | IX28: 0 | IY28: 0 | IZ28: 0 | JA28: 0 | JB28: 0 | JC28: 0 | JD28: 0 | JE28: 0 | JF28: 0 | JG28: 0 | JU28: =+JL19*Input!$B$1 -> 0 | JV28: =+JM19*Input!$B$1 -> 0 | JW28: =+JN19*Input!$B$1 -> 0 | JX28: =+JO19*Input!$B$1 -> 0 | JY28: =+JP19*Input!$B$1 -> 0 | JZ28: =+JQ19*Input!$B$1 -> 0 | KA28: =+JR19*Input!$B$1 -> 0 | KB28: =+JS19*Input!$B$1 -> 0 | KC28: =+JT19*Input!$B$1 -> 0 | KN28: =+KE19*Input!$B$1 -> 10 | KO28: =+KF19*Input!$B$1 -> 8.75 | KP28: =+KG19*Input!$B$1 -> 7.5 | KQ28: =+KH19*Input!$B$1 -> 6.25 | KR28: =+KI19*Input!$B$1 -> 5 | KS28: =+KJ19*Input!$B$1 -> 3.75 | KT28: =+KK19*Input!$B$1 -> 2.5 | KU28: =+KL19*Input!$B$1 -> 1.25 | KV28: =+KM19*Input!$B$1 -> 0 | KX28: 0 | KY28: 0 | KZ28: 0 | LA28: 0 | LB28: 0 | LC28: 0 | LD28: 0 | LE28: 0 | LF28: 0 | LG28: 0 | LH28: 0 | LI28: 0 | LJ28: 0 | LK28: 0 | LL28: 0 | LM28: 0 | LN28: 0 | LO28: 0 | LQ28: 0 | LR28: 0 | LS28: 0 | LT28: 0 | LU28: 0 | LV28: 0 | LW28: 0 | LX28: 0 | LY28: 0 | LZ28: 10 | MA28: 8.75 | MB28: 7.5 | MC28: 6.25 | MD28: 5 | ME28: 3.75 | MF28: 2.5 | MG28: 1.25 | MH28: 0
C29: Sum | D29: =+FL33 -> 0 | E29: 0.390625 | F29: 0.625 | G29: 0.703125 | H29: 0.625 | I29: 0.390625 | J29: 0 | K29: -0.546875 | L29: -1.25 | M29: -1.25 | N29: -0.546875 | O29: 0 | P29: 0.390625 | Q29: 0.625 | R29: 0.703125 | S29: 0.625 | T29: 0.390625 | U29: 0 | V29: =+CA33 -> -0.625 | W29: =+CG33 -> 0.625 | X29: =+BV33 -> 0.375 | Y29: =+BY33 -> 1.25 | Z29: =+CE33 -> 0.375 | AE29: =+X29 -> 0.375 | AU29: =+V29 -> -0.625 | AV29: =+W29 -> 0.625 | BL29: =-Z29 -> -0.375
D30: ×L12/10 | V30: ×L1 | BP30: Fx11/(L1)^2 | BT30: =-1/(8*(1+Input!B1)) -> -0.0625 | BV30: =0.5+BT30 -> 0.4375 | BY30: =1/2-(1+1/Input!$B$1)*BT30 -> 0.625 | CA30: =-0.5+BT30 -> -0.5625 | CE30: =1/Input!B1*BT30 -> -0.0625 | CG30: =-BT30/Input!B1 -> 0.0625 | CI30: -0.04166666667 | CJ30: =-BT30/6 -> 0.01041666667 | CK30: =+CI30+CJ30 -> -0.03125 | CM30: 0.04166666667 | CN30: =+BT30/3 -> -0.02083333333 | CO30: =+CM30+CN30 -> 0.02083333333 | CR30: =-BT30/3*Input!$B$1 -> 0.02083333333 | CS30: =+CQ30+CR30 -> 0.02083333333 | CV30: =+BT30/6*Input!$B$1 -> -0.01041666667 | CW30: =+CU30+CV30 -> -0.01041666667 | ER30: =+ER7*(1-ER7)/2+DX8*$BT$30 -> 0 | ES30: 0.046875 | ET30: 0.078125 | EU30: 0.09375 | EV30: 0.09375 | EW30: 0.078125 | EX30: 0.046875 | EY30: 0 | EZ30: -0.0625 | FA30: =+EG8*$BT$30 -> -0.0625 | FB30: -0.0546875 | FC30: -0.046875 | FD30: -0.0390625 | FE30: -0.03125 | FF30: -0.0234375 | FG30: -0.015625 | FH30: -0.0078125 | FI30: 0 | FL30: =+ER30*10 -> 0 | FM30: 0.46875 | FN30: 0.78125 | FO30: 0.9375 | FP30: 0.9375 | FQ30: 0.78125 | FR30: 0.46875 | FS30: 0 | FT30: -0.625 | FU30: -0.625 | FV30: =+FB30*10 -> -0.546875 | FW30: -0.46875 | FX30: -0.390625 | FY30: -0.3125 | FZ30: -0.234375 | GA30: -0.15625 | GB30: -0.078125 | GC30: 0 | GH30: =(3*GH$7^5/4-7*GH$7^4/4+GH$7^3-1/4*(GH$7-1)^3*(3*GH$7+1)*GH$7)/6 -> 0 | GI30: =(3*GI$7^5/4-7*GI$7^4/4+GI$7^3-1/4*(GI$7-1)^3*(3*GI$7+1)*GI$7)/6 -> 0.005055745443 | GJ30: =(3*GJ$7^5/4-7*GJ$7^4/4+GJ$7^3-1/4*(GJ$7-1)^3*(3*GJ$7+1)*GJ$7)/6 -> 0.00927734375 | GK30: 0.01205444336 | GL30: 0.01302083333 | GM30: 0.01205444336 | GN30: 0.00927734375 | GO30: 0.005055745443 | GP30: 0 | HA30: =+HA$9*$BT30 -> 0 | HB30: -0.001281738281 | HC30: -0.00244140625 | HD30: -0.003356933594 | HE30: -0.00390625 | HF30: -0.003967285156 | HG30: -0.00341796875 | HH30: -0.002136230469 | HI30: 0 | HJ30: 0 | HK30: =+HK$9*$BT30 -> -0.002136230469 | HL30: -0.00341796875 | HM30: -0.003967285156 | HN30: -0.00390625 | HO30: -0.003356933594 | HP30: -0.00244140625 | HQ30: -0.001281738281 | HR30: 0 | HV30: =+GH30+HA30 -> 0 | HW30: 0.003774007161 | HX30: 0.0068359375 | HY30: 0.008697509766 | HZ30: 0.009114583333 | IA30: 0.008087158203 | IB30: 0.005859375 | IC30: 0.002919514974 | ID30: 0 | IE30: 0 | IF30: =+GR30+HK30 -> -0.002136230469 | IG30: -0.00341796875 | IH30: -0.003967285156 | II30: -0.00390625 | IJ30: -0.003356933594 | IK30: -0.00244140625 | IL30: -0.001281738281 | IM30: 0 | IP30: =+HV30*100 -> 0 | IQ30: 0.3774007161 | IR30: 0.68359375 | IS30: 0.8697509766 | IT30: 0.9114583333 | IU30: 0.8087158203 | IV30: 0.5859375 | IW30: 0.2919514974 | IX30: 0 | IY30: 0 | IZ30: =+IF30*100 -> -0.2136230469 | JA30: -0.341796875 | JB30: -0.3967285156 | JC30: -0.390625 | JD30: -0.3356933594 | JE30: -0.244140625 | JF30: -0.1281738281 | JG30: 0
BP31: Fx12/(L1)^2 | BT31: =-Input!B1^3/(8*(1+Input!B1)) -> -0.0625 | BV31: =+BT31 -> -0.0625 | BY31: =+Input!$B$1/2-(1+1/Input!$B$1)*BT31 -> 0.625 | CA31: =+BT31 -> -0.0625 | CE31: =+Input!B1/2+BT31/Input!B1 -> 0.4375 | CG31: =Input!B1/2-BT31/Input!B1 -> 0.5625 | CJ31: =-BT31/6 -> 0.01041666667 | CK31: =+CI31+CJ31 -> 0.01041666667 | CN31: =+BT31/3 -> -0.02083333333 | CO31: =+CM31+CN31 -> -0.02083333333 | CQ31: =-0.0416666666666667*Input!$B$1^3 -> -0.04166666667 | CR31: =-BT31/3*Input!$B$1 -> 0.02083333333 | CS31: =+CQ31+CR31 -> -0.02083333333 | CU31: =0.0416666666666667*Input!$B$1^3 -> 0.04166666667 | CV31: =+BT31/6*Input!$B$1 -> -0.01041666667 | CW31: =+CU31+CV31 -> 0.03125 | ER31: =+DX8*$BT$31 -> 0 | ES31: -0.0078125 | ET31: -0.015625 | EU31: -0.0234375 | EV31: -0.03125 | EW31: -0.0390625 | EX31: -0.046875 | EY31: -0.0546875 | EZ31: -0.0625 | FA31: =+(Input!$B$1)^2*FA$7*(1-FA$7)/2+EG8*$BT$31 -> -0.0625 | FB31: =+(Input!$B$1)^2*FB$7*(1-FB$7)/2+EH8*$BT$31 -> 0 | FC31: =+(Input!$B$1)^2*FC$7*(1-FC$7)/2+EI8*$BT$31 -> 0.046875 | FD31: =+(Input!$B$1)^2*FD$7*(1-FD$7)/2+EJ8*$BT$31 -> 0.078125 | FE31: =+(Input!$B$1)^2*FE$7*(1-FE$7)/2+EK8*$BT$31 -> 0.09375 | FF31: =+(Input!$B$1)^2*FF$7*(1-FF$7)/2+EL8*$BT$31 -> 0.09375 | FG31: =+(Input!$B$1)^2*FG$7*(1-FG$7)/2+EM8*$BT$31 -> 0.078125 | FH31: =+(Input!$B$1)^2*FH$7*(1-FH$7)/2+EN8*$BT$31 -> 0.046875 | FI31: =+(Input!$B$1)^2*FI$7*(1-FI$7)/2+EO8*$BT$31 -> 0 | FL31: 0 | FM31: -0.078125 | FN31: -0.15625 | FO31: -0.234375 | FP31: -0.3125 | FQ31: -0.390625 | FR31: -0.46875 | FS31: -0.546875 | FT31: -0.625 | FU31: -0.625 | FV31: 0 | FW31: 0.46875 | FX31: 0.78125 | FY31: 0.9375 | FZ31: 0.9375 | GA31: 0.78125 | GB31: 0.46875 | GC31: 0 | GQ31: =(3*GQ$7^5/4-7*GQ$7^4/4+GQ$7^3-1/4*(GQ$7-1)^3*(3*GQ$7+1)*GQ$7)/6*(Input!$B$1^4) -> 0 | GR31: =(3*GR$7^5/4-7*GR$7^4/4+GR$7^3-1/4*(GR$7-1)^3*(3*GR$7+1)*GR$7)/6*(Input!$B$1^4) -> 0.005055745443 | GS31: =(3*GS$7^5/4-7*GS$7^4/4+GS$7^3-1/4*(GS$7-1)^3*(3*GS$7+1)*GS$7)/6*(Input!$B$1^4) -> 0.00927734375 | GT31: =(3*GT$7^5/4-7*GT$7^4/4+GT$7^3-1/4*(GT$7-1)^3*(3*GT$7+1)*GT$7)/6*(Input!$B$1^4) -> 0.01205444336 | GU31: =(3*GU$7^5/4-7*GU$7^4/4+GU$7^3-1/4*(GU$7-1)^3*(3*GU$7+1)*GU$7)/6*(Input!$B$1^4) -> 0.01302083333 | GV31: =(3*GV$7^5/4-7*GV$7^4/4+GV$7^3-1/4*(GV$7-1)^3*(3*GV$7+1)*GV$7)/6*(Input!$B$1^4) -> 0.01205444336 | GW31: =(3*GW$7^5/4-7*GW$7^4/4+GW$7^3-1/4*(GW$7-1)^3*(3*GW$7+1)*GW$7)/6*(Input!$B$1^4) -> 0.00927734375 | GX31: =(3*GX$7^5/4-7*GX$7^4/4+GX$7^3-1/4*(GX$7-1)^3*(3*GX$7+1)*GX$7)/6*(Input!$B$1^4) -> 0.005055745443 | GY31: =(3*GY$7^5/4-7*GY$7^4/4+GY$7^3-1/4*(GY$7-1)^3*(3*GY$7+1)*GY$7)/6*(Input!$B$1^4) -> 0 | HA31: 0 | HB31: -0.001281738281 | HC31: -0.00244140625 | HD31: -0.003356933594 | HE31: -0.00390625 | HF31: -0.003967285156 | HG31: -0.00341796875 | HH31: -0.002136230469 | HI31: 0 | HJ31: 0 | HK31: -0.002136230469 | HL31: -0.00341796875 | HM31: -0.003967285156 | HN31: -0.00390625 | HO31: -0.003356933594 | HP31: -0.00244140625 | HQ31: -0.001281738281 | HR31: 0 | HV31: 0 | HW31: -0.001281738281 | HX31: -0.00244140625 | HY31: -0.003356933594 | HZ31: -0.00390625 | IA31: -0.003967285156 | IB31: -0.00341796875 | IC31: -0.002136230469 | ID31: 0 | IE31: 0 | IF31: 0.002919514974 | IG31: 0.005859375 | IH31: 0.008087158203 | II31: 0.009114583333 | IJ31: 0.008697509766 | IK31: 0.0068359375 | IL31: 0.003774007161 | IM31: 0 | IP31: 0 | IQ31: -0.1281738281 | IR31: -0.244140625 | IS31: -0.3356933594 | IT31: -0.390625 | IU31: -0.3967285156 | IV31: -0.341796875 | IW31: -0.2136230469 | IX31: 0 | IY31: 0 | IZ31: 0.2919514974 | JA31: 0.5859375 | JB31: 0.8087158203 | JC31: 0.9114583333 | JD31: 0.8697509766 | JE31: 0.68359375 | JF31: 0.3774007161 | JG31: 0
D32: Deflection | V32: Slope
D33: 0 | E33: =+D33+1 -> 1 | F33: 2 | G33: 3 | H33: 4 | I33: 5 | J33: 6 | K33: 7 | L33: 8 | M33: =+L33 -> 8 | N33: =+M33+1 -> 9 | O33: 10 | P33: 11 | Q33: 12 | R33: 13 | S33: 14 | T33: 15 | U33: 16 | V33: SA | W33: lSB | X33: SC | BV33: =+BV30+BV31 -> 0.375 | BY33: =+BY30+BY31 -> 1.25 | CA33: =+CA30+CA31 -> -0.625 | CE33: =+CE30+CE31 -> 0.375 | CG33: =+CG30+CG31 -> 0.625 | CK33: =+CK30+CK31 -> -0.02083333333 | CO33: =+CO30+CO31 -> 0 | CS33: =+CS30+CS31 -> -3.469446952e-17 | CW33: =+CW30+CW31 -> 0.02083333333 | ER33: =+ER30+ER31 -> 0 | ES33: 0.0390625 | ET33: 0.0625 | EU33: 0.0703125 | EV33: 0.0625 | EW33: 0.0390625 | EX33: 0 | EY33: -0.0546875 | EZ33: -0.125 | FA33: -0.125 | FB33: -0.0546875 | FC33: 0 | FD33: 0.0390625 | FE33: 0.0625 | FF33: 0.0703125 | FG33: 0.0625 | FH33: 0.0390625 | FI33: 0 | FL33: =+ER33*10 -> 0 | FM33: 0.390625 | FN33: 0.625 | FO33: 0.703125 | FP33: 0.625 | FQ33: 0.390625 | FR33: 0 | FS33: -0.546875 | FT33: -1.25 | FU33: -1.25 | FV33: -0.546875 | FW33: 0 | FX33: 0.390625 | FY33: 0.625 | FZ33: 0.703125 | GA33: 0.625 | GB33: 0.390625 | GC33: 0 | HV33: =+HV30+HV31 -> 0 | HW33: 0.00249226888 | HX33: 0.00439453125 | HY33: 0.005340576172 | HZ33: 0.005208333333 | IA33: 0.004119873047 | IB33: 0.00244140625 | IC33: 0.0007832845052 | ID33: 0 | IE33: 0 | IF33: 0.0007832845052 | IG33: 0.00244140625 | IH33: 0.004119873047 | II33: 0.005208333333 | IJ33: 0.005340576172 | IK33: 0.00439453125 | IL33: 0.00249226888 | IM33: 0 | IP33: =+HV33*100 -> 0 | IQ33: 0.249226888 | IR33: 0.439453125 | IS33: 0.5340576172 | IT33: 0.5208333333 | IU33: 0.4119873047 | IV33: 0.244140625 | IW33: 0.07832845052 | IX33: 0 | IY33: 0 | IZ33: 0.07832845052 | JA33: 0.244140625 | JB33: 0.4119873047 | JC33: 0.5208333333 | JD33: 0.5340576172 | JE33: 0.439453125 | JF33: 0.249226888 | JG33: 0
C34: 0 | D34: =+IP11 -> 0 | E34: =+IQ11 -> 0 | F34: =+IR11 -> 0 | G34: =+IS11 -> 0 | H34: =+IT11 -> 0 | I34: =+IU11 -> 0 | J34: =+IV11 -> 0 | K34: =+IW11 -> 0 | L34: =+IX11 -> 0 | M34: =+IY11 -> 0 | N34: =+IZ11 -> 0 | O34: =+JA11 -> 0 | P34: =+JB11 -> 0 | Q34: =+JC11 -> 0 | R34: =+JD11 -> 0 | S34: =+JE11 -> 0 | T34: =+JF11 -> 0 | U34: =+JG11 -> 0 | V34: =+CK11*10 -> 0 | W34: =+CO11*10 -> 0 | X34: =+CW11*10 -> 0
C35: =+C34+1 -> 1 | D35: 0 | E35: 0.3356774648 | F35: 0.5390167236 | G35: 0.6078879038 | H35: 0.5727132161 | I35: 0.4639148712 | J35: 0.3119150798 | K35: 0.1471360524 | L35: 0 | M35: 0 | N35: -0.1051425934 | O35: -0.1682281494 | P35: -0.1952648163 | Q35: -0.1922607422 | R35: -0.1652240753 | S35: -0.1201629639 | T35: -0.06308555603 | U35: 0 | V35: -0.2905273438 | W35: 0.1025390625 | X35: -0.05126953125
C36: 2 | D36: 0 | E36: 0.5390167236 | F36: 0.9429931641 | G36: 1.109441121 | H36: 1.066080729 | I36: 0.8731842041 | J36: 0.591023763 | K36: 0.2798716227 | L36: 0 | M36: 0 | N36: -0.2002716064 | O36: -0.3204345703 | P36: -0.3719329834 | Q36: -0.3662109375 | R36: -0.3147125244 | S36: -0.2288818359 | T36: -0.1201629639 | U36: 0 | V36: -0.44921875 | W36: 0.1953125 | X36: -0.09765625
C37: 3 | D37: 0 | E37: 0.6078879038 | F37: 1.109441121 | G37: 1.398324966 | H37: 1.400756836 | I37: 1.17316246 | J37: 0.8045196533 | K37: 0.3838062286 | L37: 0 | M37: 0 | N37: -0.2753734589 | O37: -0.4405975342 | P37: -0.5114078522 | Q37: -0.5035400391 | R37: -0.4327297211 | S37: -0.3147125244 | T37: -0.1652240753 | U37: 0 | V37: -0.5004882812 | W37: 0.2685546875 | X37: -0.1342773438
C38: 4 | D38: 0 | E38: 0.5727132161 | F38: 1.066080729 | G38: 1.400756836 | H38: 1.497395833 | I38: 1.309204102 | J38: 0.9195963542 | K38: 0.444539388 | L38: 0 | M38: 0 | N38: -0.3204345703 | O38: -0.5126953125 | P38: -0.5950927734 | Q38: -0.5859375 | R38: -0.5035400391 | S38: -0.3662109375 | T38: -0.1922607422 | U38: 0 | V38: -0.46875 | W38: 0.3125 | X38: -0.15625
C39: 5 | D39: 0 | E39: 0.4639148712 | F39: 0.8731842041 | G39: 1.17316246 | H39: 1.309204102 | I39: 1.226663589 | J39: 0.9034474691 | K39: 0.4476706187 | L39: 0 | M39: 0 | N39: -0.3254413605 | O39: -0.5207061768 | P39: -0.604391098 | Q39: -0.5950927734 | R39: -0.5114078522 | S39: -0.3719329834 | T39: -0.1952648163 | U39: 0 | V39: -0.3784179688 | W39: 0.3173828125 | X39: -0.1586914062
C40: 6 | D40: 0 | E40: 0.3119150798 | F40: 0.591023763 | G40: 0.8045196533 | H40: 0.9195963542 | I40: 0.9034474691 | J40: 0.7232666016 | K40: 0.3787994385 | L40: 0 | M40: 0 | N40: -0.280380249 | O40: -0.4486083984 | P40: -0.5207061768 | Q40: -0.5126953125 | R40: -0.4405975342 | S40: -0.3204345703 | T40: -0.1682281494 | U40: 0 | V40: -0.25390625 | W40: 0.2734375 | X40: -0.13671875
C41: 7 | D41: 0 | E41: 0.1471360524 | F41: 0.2798716227 | G41: 0.3838062286 | H41: 0.444539388 | I41: 0.4476706187 | J41: 0.3787994385 | K41: 0.2235253652 | L41: 0 | M41: 0 | N41: -0.1752376556 | O41: -0.280380249 | P41: -0.3254413605 | Q41: -0.3204345703 | R41: -0.2753734589 | S41: -0.2002716064 | T41: -0.1051425934 | U41: 0 | V41: -0.1196289062 | W41: 0.1708984375 | X41: -0.08544921875
C42: 8 | D42: 0 | E42: 0 | F42: 0 | G42: 0 | H42: 0 | I42: 0 | J42: 0 | K42: 0 | L42: 0 | M42: 0 | N42: 0 | O42: 0 | P42: 0 | Q42: 0 | R42: 0 | S42: 0 | T42: 0 | U42: 0 | V42: 0 | W42: 0 | X42: 0
C43: =+C42 -> 8 | D43: 0 | E43: 0 | F43: 0 | G43: 0 | H43: 0 | I43: 0 | J43: 0 | K43: 0 | L43: 0 | M43: 0 | N43: 0 | O43: 0 | P43: 0 | Q43: 0 | R43: 0 | S43: 0 | T43: 0 | U43: 0 | V43: 0 | W43: 0 | X43: 0
C44: =+C43+1 -> 9 | D44: 0 | E44: -0.1051425934 | F44: -0.2002716064 | G44: -0.2753734589 | H44: -0.3204345703 | I44: -0.3254413605 | J44: -0.280380249 | K44: -0.1752376556 | L44: 0 | M44: 0 | N44: 0.2235253652 | O44: 0.3787994385 | P44: 0.4476706187 | Q44: 0.444539388 | R44: 0.3838062286 | S44: 0.2798716227 | T44: 0.1471360524 | U44: 0 | V44: 0.08544921875 | W44: -0.1708984375 | X44: 0.1196289062
C45: 10 | D45: 0 | E45: -0.1682281494 | F45: -0.3204345703 | G45: -0.4405975342 | H45: -0.5126953125 | I45: -0.5207061768 | J45: -0.4486083984 | K45: -0.280380249 | L45: 0 | M45: 0 | N45: 0.3787994385 | O45: 0.7232666016 | P45: 0.9034474691 | Q45: 0.9195963542 | R45: 0.8045196533 | S45: 0.591023763 | T45: 0.3119150798 | U45: 0 | V45: 0.13671875 | W45: -0.2734375 | X45: 0.25390625
C46: 11 | D46: 0 | E46: -0.1952648163 | F46: -0.3719329834 | G46: -0.5114078522 | H46: -0.5950927734 | I46: -0.604391098 | J46: -0.5207061768 | K46: -0.3254413605 | L46: 0 | M46: 0 | N46: 0.4476706187 | O46: 0.9034474691 | P46: 1.226663589 | Q46: 1.309204102 | R46: 1.17316246 | S46: 0.8731842041 | T46: 0.4639148712 | U46: 0 | V46: 0.1586914062 | W46: -0.3173828125 | X46: 0.3784179688
C47: 12 | D47: 0 | E47: -0.1922607422 | F47: -0.3662109375 | G47: -0.5035400391 | H47: -0.5859375 | I47: -0.5950927734 | J47: -0.5126953125 | K47: -0.3204345703 | L47: 0 | M47: 0 | N47: 0.444539388 | O47: 0.9195963542 | P47: 1.309204102 | Q47: 1.497395833 | R47: 1.400756836 | S47: 1.066080729 | T47: 0.5727132161 | U47: 0 | V47: 0.15625 | W47: -0.3125 | X47: 0.46875
C48: 13 | D48: 0 | E48: -0.1652240753 | F48: -0.3147125244 | G48: -0.4327297211 | H48: -0.5035400391 | I48: -0.5114078522 | J48: -0.4405975342 | K48: -0.2753734589 | L48: 0 | M48: 0 | N48: 0.3838062286 | O48: 0.8045196533 | P48: 1.17316246 | Q48: 1.400756836 | R48: 1.398324966 | S48: 1.109441121 | T48: 0.6078879038 | U48: 0 | V48: 0.1342773438 | W48: -0.2685546875 | X48: 0.5004882812
C49: 14 | D49: 0 | E49: -0.1201629639 | F49: -0.2288818359 | G49: -0.3147125244 | H49: -0.3662109375 | I49: -0.3719329834 | J49: -0.3204345703 | K49: -0.2002716064 | L49: 0 | M49: 0 | N49: 0.2798716227 | O49: 0.591023763 | P49: 0.8731842041 | Q49: 1.066080729 | R49: 1.109441121 | S49: 0.9429931641 | T49: 0.5390167236 | U49: 0 | V49: 0.09765625 | W49: -0.1953125 | X49: 0.44921875
C50: 15 | D50: 0 | E50: -0.06308555603 | F50: -0.1201629639 | G50: -0.1652240753 | H50: -0.1922607422 | I50: -0.1952648163 | J50: -0.1682281494 | K50: -0.1051425934 | L50: 0 | M50: 0 | N50: 0.1471360524 | O50: 0.3119150798 | P50: 0.4639148712 | Q50: 0.5727132161 | R50: 0.6078879038 | S50: 0.5390167236 | T50: 0.3356774648 | U50: 0 | V50: 0.05126953125 | W50: -0.1025390625 | X50: 0.2905273438
C51: 16 | D51: 0 | E51: 0 | F51: 0 | G51: 0 | H51: 0 | I51: 0 | J51: 0 | K51: 0 | L51: 0 | M51: 0 | N51: 0 | O51: 0 | P51: 0 | Q51: 0 | R51: 0 | S51: 0 | T51: 0 | U51: 0 | V51: 0 | W51: 0 | X51: 0
D52: ×(L13/EI)/100 | V52: ×(L12/EI)/10
C53: Span 1 | D53: =+IP30 -> 0 | E53: 0.3774007161 | F53: 0.68359375 | G53: 0.8697509766 | H53: 0.9114583333 | I53: 0.8087158203 | J53: 0.5859375 | K53: 0.2919514974 | L53: 0 | M53: 0 | N53: =+IZ30 -> -0.2136230469 | O53: -0.341796875 | P53: -0.3967285156 | Q53: -0.390625 | R53: -0.3356933594 | S53: -0.244140625 | T53: -0.1281738281 | U53: 0 | V53: =+CK30*10 -> -0.3125 | W53: =+CO30*10 -> 0.2083333333 | X53: =+CW30*10 -> -0.1041666667
C54: Span 2 | D54: 0 | E54: -0.1281738281 | F54: -0.244140625 | G54: -0.3356933594 | H54: -0.390625 | I54: -0.3967285156 | J54: -0.341796875 | K54: -0.2136230469 | L54: 0 | M54: 0 | N54: 0.2919514974 | O54: 0.5859375 | P54: 0.8087158203 | Q54: 0.9114583333 | R54: 0.8697509766 | S54: 0.68359375 | T54: 0.3774007161 | U54: 0 | V54: =+CK31*10 -> 0.1041666667 | W54: =+CO31*10 -> -0.2083333333 | X54: =+CW31*10 -> 0.3125
C55: Sum | D55: =+IP33 -> 0 | E55: 0.249226888 | F55: 0.439453125 | G55: 0.5340576172 | H55: 0.5208333333 | I55: 0.4119873047 | J55: 0.244140625 | K55: 0.07832845052 | L55: 0 | M55: 0 | N55: 0.07832845052 | O55: 0.244140625 | P55: 0.4119873047 | Q55: 0.5208333333 | R55: 0.5340576172 | S55: 0.439453125 | T55: 0.249226888 | U55: 0 | V55: =+CK33*10 -> -0.2083333333 | W55: =+CO33*10 -> 0 | X55: =+CW33*10 -> 0.2083333333
D56: ×(L14/EI)/100 | V56: ×(L13/EI)/10
L59: =95+7/12 -> 95.58333333 | M59: =+$L$59*C8/8 -> 0 | O59: 8 | P59: 43.9269969 | Q59: =FORECAST(P59,OFFSET($Y$8:$Y$25,MATCH(P59,$M$59:$M$76,1)-1,0,2),OFFSET($M$59:$M$76,MATCH(P59,$M$59:$M$76,1)-1,0,2)) -> 0.638538812 | R59: =+O59*Q59 -> 5.108310496 | S59: =+P59/$L$59 -> 0.4595675351 | T59: =+S59*8 -> 3.676540281
L60: =107+7/12 -> 107.5833333 | M60: 11.94791667 | O60: 32 | P60: =+P59+14 -> 57.9269969 | Q60: 0.7960218173 | R60: =+O60*Q60 -> 25.47269815 | S60: =+P60/$L$59 -> 0.6060365848 | T60: =+S60*8 -> 4.848292678
L61: =+L59+L60 -> 203.1666667 | M61: 23.89583333 | O61: 32 | P61: =+P60+14 -> 71.9269969 | Q61: 0.9153348925 | R61: 29.29071656 | S61: =+P61/$L$59 -> 0.7525056345 | T61: 6.020045076
M62: 35.84375 | O62: 8 | P62: =+P61+50 -> 121.9269969 | Q62: 0.9166688397 | R62: 7.333350717 | S62: =+(P62-$L$59)/$L$60 -> 0.2448675157 | T62: 1.958940126
M63: 47.79166667 | O63: 32 | P63: =+P62+14 -> 135.9269969 | Q63: 0.8154303215 | R63: 26.09377029 | S63: =+(P63-$L$59)/$L$60 -> 0.3749991966 | T63: 2.999993573
M64: 59.73958333 | O64: 32 | P64: =+P63+14 -> 149.9269969 | Q64: 0.6812868281 | R64: 21.8011785 | S64: =+(P64-$L$59)/$L$60 -> 0.5051308774 | T64: 4.041047019
M65: 71.6875 | R65: =+SUM(R59:R64) -> 115.1000247
M66: 83.63541667 | R66: =+R65*0.9 -> 103.5900222
M67: 95.58333333 | R67: =+R66*1.33 -> 137.7747296
M68: =+$L$59+$L$60*(C17-8)/8 -> 95.58333333 | R68: 0.64
M69: 109.03125 | R69: =+R68*Y29 -> 0.8
M70: 122.4791667 | R70: =+R69*L59 -> 76.46666667
M71: 135.9270833 | R71: =+R70*0.9 -> 68.82
M72: 149.375 | R72: =+R67+R71 -> 206.5947296
M73: 162.8229167
M74: 176.2708333
M75: 189.71875
M76: 203.1666667
